Workbook

Sheet اساس 2016 مرتب
E2: ; ] [
B3: تاريخ الفتح الفني | C3: تاريخ المستخلص ( من ) | D3: (الى ) | E3: جملة الأيام
C4: 2019-09-12 | D4: 2020-08-11 | E4: =D4-C4 -> 334 | F4: =D4 -> 2020-08-11
B5: 2019-01-01 | C5: 2019-09-01 | D5: 2020-06-01 | E5: =$E$4 -> 334
C17: شهور المستحلص | D17: نهاية الشهر | E17: أيام الشهر
C18: =C4 -> 2019-09-12 | D18: =EOMONTH(C18,0) -> 2019-09-30 | E18: =D18-C18 -> 18
C19: =DATE(YEAR(C18),MONTH(C18),DAY(C18)+(E18)+1) -> 2019-10-01 | D19: =EOMONTH(C19,0) -> 2019-10-31 | E19: =D19-C19 -> 30
C20: =DATE(YEAR(C19),MONTH(C19),DAY(C19)+(E19)+1) -> 2019-11-01 | D20: 2019-11-30 | E20: 29
C21: 2019-12-01 | D21: 2019-12-31 | E21: 30
C22: 2020-01-01 | D22: 2020-01-31 | E22: 30
C23: 2020-02-01 | D23: 2020-02-29 | E23: 28
C24: 2020-03-01 | D24: 2020-03-31 | E24: 30
C25: 2020-04-01 | D25: 2020-04-30 | E25: 29
C29: فترة المستحلص
C30: =DATEDIF(C5,D5,"m") -> 9
B33: =AbuHani.NoToTxt(B34,"جنيه","قرش") -> فقط مليون وستمائة وسبعة وأربعون ألف وأربعمائة وخمسة وثمانون جنيه وسبعة وأربعون قرش
B34: =SUM((P38:P406),(Z38:Z406),(AG38:AG406)) -> 1647485.474
G37: رقم البند | H37: البند | I37: سعر فتح | J37: سعر مستخلص | K37: نسبة التأثير | L37: كمية | M37: سعر | N37: عدد الأيام | O37: الأيام الكلية | P37: الإجمالي
G38: 1 | H38: سولار | I38: =VLOOKUP($B$5,'الارقام القياسية 2016'!$A$2:$I$73,2,0) -> 266.2 | J38: =VLOOKUP($C$5,'الارقام القياسية 2016'!$A$2:$I$73,2,0) -> 319.6 | K38: =VLOOKUP($G$38,نسب!$A$4:$T$100,4,0) -> 0.2 | L38: =VLOOKUP($G$38,نسب!$A$4:$C$100,3,0) -> 120 | M38: =VLOOKUP($G$38,نسب!$A$4:$C$100,2,0) -> 5 | N38: =$E$4 -> 334 | O38: =$D$5-$C$5 -> 274 | P38: =IFERROR((I38*J38)/I38*K38*L38*M38*N38/O38,"") -> 46750.24818
H39: اسمنت بورتلاند | I39: =VLOOKUP($B$5,'الارقام القياسية 2016'!$A$2:$I$73,3,0) -> 131.9 | J39: =VLOOKUP($C$5,'الارقام القياسية 2016'!$A$2:$I$73,3,0) -> 137.6 | K39: =VLOOKUP($G$38,نسب!$A$4:$T$100,5,0) -> 0 | L39: =VLOOKUP($G$38,نسب!$A$4:$C$100,3,0) -> 120 | M39: =VLOOKUP($G$38,نسب!$A$4:$C$100,2,0) -> 5 | N39: 334 | O39: 274 | P39: 0
H40: حديد | I40: =VLOOKUP($B$5,'الارقام القياسية 2016'!$A$2:$I$73,4,0) -> 263.7 | J40: =VLOOKUP($C$5,'الارقام القياسية 2016'!$A$2:$I$73,4,0) -> 270.2 | K40: =VLOOKUP($G$38,نسب!$A$4:$T$100,6,0) -> 0 | L40: =VLOOKUP($G$38,نسب!$A$4:$C$100,3,0) -> 120 | M40: =VLOOKUP($G$38,نسب!$A$4:$C$100,2,0) -> 5 | N40: 334 | O40: 274 | P40: 0
H41: اسفلت | I41: =VLOOKUP($B$5,'الارقام القياسية 2016'!$A$2:$I$73,5,0) -> 311 | J41: =VLOOKUP($C$5,'الارقام القياسية 2016'!$A$2:$I$73,5,0) -> 311 | K41: =VLOOKUP($G$38,نسب!$A$4:$T$100,7,0) -> 0 | L41: =VLOOKUP($G$38,نسب!$A$4:$C$100,3,0) -> 120 | M41: =VLOOKUP($G$38,نسب!$A$4:$C$100,2,0) -> 5 | N41: 334 | O41: 274 | P41: 0
H42: قطاعات معدنية | I42: =VLOOKUP($B$5,'الارقام القياسية 2016'!$A$2:$I$73,6,0) -> 250.6 | J42: =VLOOKUP($C$5,'الارقام القياسية 2016'!$A$2:$I$73,6,0) -> 233.5 | K42: =VLOOKUP($G$38,نسب!$A$4:$T$100,8,0) -> 0 | L42: =VLOOKUP($G$38,نسب!$A$4:$C$100,3,0) -> 120 | M42: =VLOOKUP($G$38,نسب!$A$4:$C$100,2,0) -> 5 | N42: 334 | O42: 274 | P42: 0
H43: غلاف معدني | I43: =VLOOKUP($B$5,'الارقام القياسية 2016'!$A$2:$I$73,7,0) -> 278.2 | J43: =VLOOKUP($C$5,'الارقام القياسية 2016'!$A$2:$I$73,7,0) -> 238.5 | K43: =VLOOKUP($G$38,نسب!$A$4:$T$100,9,0) -> 0 | L43: =VLOOKUP($G$38,نسب!$A$4:$C$100,3,0) -> 120 | M43: =VLOOKUP($G$38,نسب!$A$4:$C$100,2,0) -> 5 | N43: 334 | O43: 274 | P43: 0
H44: زوايا وكمرات | I44: =VLOOKUP($B$5,'الارقام القياسية 2016'!$A$2:$I$73,8,0) -> 271.6 | J44: =VLOOKUP($C$5,'الارقام القياسية 2016'!$A$2:$I$73,8,0) -> 276.9 | K44: =VLOOKUP($G$38,نسب!$A$4:$T$100,10,0) -> 0 | L44: =VLOOKUP($G$38,نسب!$A$4:$C$100,3,0) -> 120 | M44: =VLOOKUP($G$38,نسب!$A$4:$C$100,2,0) -> 5 | N44: 334 | O44: 274 | P44: 0
H45: مواسير صلب | I45: =VLOOKUP($B$5,'الارقام القياسية 2016'!$A$2:$I$73,9,0) -> 0 | J45: =VLOOKUP($C$5,'الارقام القياسية 2016'!$A$2:$I$73,9,0) -> 0 | K45: =VLOOKUP($G$38,نسب!$A$4:$T$100,11,0) -> 0 | L45: =VLOOKUP($G$38,نسب!$A$4:$C$100,3,0) -> 120 | M45: =VLOOKUP($G$38,نسب!$A$4:$C$100,2,0) -> 5 | N45: 334 | O45: 274
G47: رقم البند | H47: البند | I47: سعر فتح | J47: سعر مستخلص | K47: نسبة التأثير | L47: كمية | M47: سعر | N47: عدد الأيام | O47: الأيام الكلية | P47: الإجمالي
G48: 2 | H48: سولار | I48: =VLOOKUP($B$5,'الارقام القياسية 2016'!$A$2:$I$73,2,0) -> 266.2 | J48: =VLOOKUP($C$5,'الارقام القياسية 2016'!$A$2:$I$73,2,0) -> 319.6 | K48: =VLOOKUP($G$48,نسب!$A$4:$T$100,4,0) -> 0.2 | L48: =VLOOKUP($G$38,نسب!$A$4:$C$100,3,0) -> 120 | M48: =VLOOKUP($G$38,نسب!$A$4:$C$100,2,0) -> 5 | N48: =$E$4 -> 334 | O48: =$D$5-$C$5 -> 274 | P48: =IFERROR((I48*J48)/I48*K48*L48*M48*N48/O48,"") -> 46750.24818
H49: اسمنت بورتلاند | I49: =VLOOKUP($B$5,'الارقام القياسية 2016'!$A$2:$I$73,3,0) -> 131.9 | J49: =VLOOKUP($C$5,'الارقام القياسية 2016'!$A$2:$I$73,3,0) -> 137.6 | K49: =VLOOKUP($G$48,نسب!$A$4:$T$100,5,0) -> 0 | L49: =VLOOKUP($G$38,نسب!$A$4:$C$100,3,0) -> 120 | M49: =VLOOKUP($G$38,نسب!$A$4:$C$100,2,0) -> 5 | N49: 334 | O49: 274 | P49: 0
H50: حديد | I50: =VLOOKUP($B$5,'الارقام القياسية 2016'!$A$2:$I$73,4,0) -> 263.7 | J50: =VLOOKUP($C$5,'الارقام القياسية 2016'!$A$2:$I$73,4,0) -> 270.2 | K50: =VLOOKUP($G$48,نسب!$A$4:$T$100,6,0) -> 0 | L50: =VLOOKUP($G$38,نسب!$A$4:$C$100,3,0) -> 120 | M50: =VLOOKUP($G$38,نسب!$A$4:$C$100,2,0) -> 5 | N50: 334 | O50: 274 | P50: 0
H51: اسفلت | I51: =VLOOKUP($B$5,'الارقام القياسية 2016'!$A$2:$I$73,5,0) -> 311 | J51: =VLOOKUP($C$5,'الارقام القياسية 2016'!$A$2:$I$73,5,0) -> 311 | K51: =VLOOKUP($G$48,نسب!$A$4:$T$100,7,0) -> 0 | L51: =VLOOKUP($G$38,نسب!$A$4:$C$100,3,0) -> 120 | M51: =VLOOKUP($G$38,نسب!$A$4:$C$100,2,0) -> 5 | N51: 334 | O51: 274 | P51: 0
H52: قطاعات معدنية | I52: =VLOOKUP($B$5,'الارقام القياسية 2016'!$A$2:$I$73,6,0) -> 250.6 | J52: =VLOOKUP($C$5,'الارقام القياسية 2016'!$A$2:$I$73,6,0) -> 233.5 | K52: =VLOOKUP($G$48,نسب!$A$4:$T$100,8,0) -> 0 | L52: =VLOOKUP($G$38,نسب!$A$4:$C$100,3,0) -> 120 | M52: =VLOOKUP($G$38,نسب!$A$4:$C$100,2,0) -> 5 | N52: 334 | O52: 274 | P52: 0
H53: غلاف معدني | I53: =VLOOKUP($B$5,'الارقام القياسية 2016'!$A$2:$I$73,7,0) -> 278.2 | J53: =VLOOKUP($C$5,'الارقام القياسية 2016'!$A$2:$I$73,7,0) -> 238.5 | K53: =VLOOKUP($G$48,نسب!$A$4:$T$100,9,0) -> 0 | L53: =VLOOKUP($G$38,نسب!$A$4:$C$100,3,0) -> 120 | M53: =VLOOKUP($G$38,نسب!$A$4:$C$100,2,0) -> 5 | N53: 334 | O53: 274 | P53: 0
H54: زوايا وكمرات | I54: =VLOOKUP($B$5,'الارقام القياسية 2016'!$A$2:$I$73,8,0) -> 271.6 | J54: =VLOOKUP($C$5,'الارقام القياسية 2016'!$A$2:$I$73,8,0) -> 276.9 | K54: =VLOOKUP($G$48,نسب!$A$4:$T$100,10,0) -> 0 | L54: =VLOOKUP($G$38,نسب!$A$4:$C$100,3,0) -> 120 | M54: =VLOOKUP($G$38,نسب!$A$4:$C$100,2,0) -> 5 | N54: 334 | O54: 274 | P54: 0
H55: مواسير صلب | I55: =VLOOKUP($B$5,'الارقام القياسية 2016'!$A$2:$I$73,9,0) -> 0 | J55: =VLOOKUP($C$5,'الارقام القياسية 2016'!$A$2:$I$73,9,0) -> 0 | K55: =VLOOKUP($G$48,نسب!$A$4:$T$100,11,0) -> 0 | L55: =VLOOKUP($G$38,نسب!$A$4:$C$100,3,0) -> 120 | M55: =VLOOKUP($G$38,نسب!$A$4:$C$100,2,0) -> 5 | N55: 334 | O55: 274
G57: رقم البند | H57: البند | I57: سعر فتح | J57: سعر مستخلص | K57: نسبة التأثير | L57: كمية | M57: سعر | N57: عدد الأيام | O57: الأيام الكلية | P57: الإجمالي
G58: 3 | H58: سولار | I58: =VLOOKUP($B$5,'الارقام القياسية 2016'!$A$2:$I$73,2,0) -> 266.2 | J58: =VLOOKUP($C$5,'الارقام القياسية 2016'!$A$2:$I$73,2,0) -> 319.6 | K58: =VLOOKUP($G$58,نسب!$A$4:$T$100,4,0) -> 0.2 | L58: =VLOOKUP($G$38,نسب!$A$4:$C$100,3,0) -> 120 | M58: =VLOOKUP($G$38,نسب!$A$4:$C$100,2,0) -> 5 | N58: =$E$4 -> 334 | O58: =$D$5-$C$5 -> 274 | P58: =IFERROR((I58*J58)/I58*K58*L58*M58*N58/O58,"") -> 46750.24818
H59: اسمنت بورتلاند | I59: =VLOOKUP($B$5,'الارقام القياسية 2016'!$A$2:$I$73,3,0) -> 131.9 | J59: =VLOOKUP($C$5,'الارقام القياسية 2016'!$A$2:$I$73,3,0) -> 137.6 | K59: =VLOOKUP($G$58,نسب!$A$4:$T$100,5,0) -> 0 | L59: =VLOOKUP($G$38,نسب!$A$4:$C$100,3,0) -> 120 | M59: =VLOOKUP($G$38,نسب!$A$4:$C$100,2,0) -> 5 | N59: 334 | O59: 274 | P59: 0
H60: حديد | I60: =VLOOKUP($B$5,'الارقام القياسية 2016'!$A$2:$I$73,4,0) -> 263.7 | J60: =VLOOKUP($C$5,'الارقام القياسية 2016'!$A$2:$I$73,4,0) -> 270.2 | K60: =VLOOKUP($G$58,نسب!$A$4:$T$100,6,0) -> 0 | L60: =VLOOKUP($G$38,نسب!$A$4:$C$100,3,0) -> 120 | M60: =VLOOKUP($G$38,نسب!$A$4:$C$100,2,0) -> 5 | N60: 334 | O60: 274 | P60: 0
H61: اسفلت | I61: =VLOOKUP($B$5,'الارقام القياسية 2016'!$A$2:$I$73,5,0) -> 311 | J61: =VLOOKUP($C$5,'الارقام القياسية 2016'!$A$2:$I$73,5,0) -> 311 | K61: =VLOOKUP($G$58,نسب!$A$4:$T$100,7,0) -> 0 | L61: =VLOOKUP($G$38,نسب!$A$4:$C$100,3,0) -> 120 | M61: =VLOOKUP($G$38,نسب!$A$4:$C$100,2,0) -> 5 | N61: 334 | O61: 274 | P61: 0
H62: قطاعات معدنية | I62: =VLOOKUP($B$5,'الارقام القياسية 2016'!$A$2:$I$73,6,0) -> 250.6 | J62: =VLOOKUP($C$5,'الارقام القياسية 2016'!$A$2:$I$73,6,0) -> 233.5 | K62: =VLOOKUP($G$58,نسب!$A$4:$T$100,8,0) -> 0 | L62: =VLOOKUP($G$38,نسب!$A$4:$C$100,3,0) -> 120 | M62: =VLOOKUP($G$38,نسب!$A$4:$C$100,2,0) -> 5 | N62: 334 | O62: 274 | P62: 0
H63: غلاف معدني | I63: =VLOOKUP($B$5,'الارقام القياسية 2016'!$A$2:$I$73,7,0) -> 278.2 | J63: =VLOOKUP($C$5,'الارقام القياسية 2016'!$A$2:$I$73,7,0) -> 238.5 | K63: =VLOOKUP($G$58,نسب!$A$4:$T$100,9,0) -> 0 | L63: =VLOOKUP($G$38,نسب!$A$4:$C$100,3,0) -> 120 | M63: =VLOOKUP($G$38,نسب!$A$4:$C$100,2,0) -> 5 | N63: 334 | O63: 274 | P63: 0
H64: زوايا وكمرات | I64: =VLOOKUP($B$5,'الارقام القياسية 2016'!$A$2:$I$73,8,0) -> 271.6 | J64: =VLOOKUP($C$5,'الارقام القياسية 2016'!$A$2:$I$73,8,0) -> 276.9 | K64: =VLOOKUP($G$58,نسب!$A$4:$T$100,10,0) -> 0 | L64: =VLOOKUP($G$38,نسب!$A$4:$C$100,3,0) -> 120 | M64: =VLOOKUP($G$38,نسب!$A$4:$C$100,2,0) -> 5 | N64: 334 | O64: 274 | P64: 0
H65: مواسير صلب | I65: =VLOOKUP($B$5,'الارقام القياسية 2016'!$A$2:$I$73,9,0) -> 0 | J65: =VLOOKUP($C$5,'الارقام القياسية 2016'!$A$2:$I$73,9,0) -> 0 | K65: =VLOOKUP($G$58,نسب!$A$4:$T$100,11,0) -> 0 | L65: =VLOOKUP($G$38,نسب!$A$4:$C$100,3,0) -> 120 | M65: =VLOOKUP($G$38,نسب!$A$4:$C$100,2,0) -> 5 | N65: 334 | O65: 274
G67: رقم البند | H67: البند | I67: سعر فتح | J67: سعر مستخلص | K67: نسبة التأثير | L67: كمية | M67: سعر | N67: عدد الأيام | O67: الأيام الكلية | P67: الإجمالي
G68: 4 | H68: سولار | I68: =VLOOKUP($B$5,'الارقام القياسية 2016'!$A$2:$I$73,2,0) -> 266.2 | J68: =VLOOKUP($C$5,'الارقام القياسية 2016'!$A$2:$I$73,2,0) -> 319.6 | K68: =VLOOKUP($G$68,نسب!$A$4:$T$100,4,0) -> 0.2 | L68: =VLOOKUP($G$38,نسب!$A$4:$C$100,3,0) -> 120 | M68: =VLOOKUP($G$38,نسب!$A$4:$C$100,2,0) -> 5 | N68: =$E$4 -> 334 | O68: =$D$5-$C$5 -> 274 | P68: =IFERROR((I68*J68)/I68*K68*L68*M68*N68/O68,"") -> 46750.24818
H69: اسمنت بورتلاند | I69: =VLOOKUP($B$5,'الارقام القياسية 2016'!$A$2:$I$73,3,0) -> 131.9 | J69: =VLOOKUP($C$5,'الارقام القياسية 2016'!$A$2:$I$73,3,0) -> 137.6 | K69: =VLOOKUP($G$68,نسب!$A$4:$T$100,5,0) -> 0 | L69: =VLOOKUP($G$38,نسب!$A$4:$C$100,3,0) -> 120 | M69: =VLOOKUP($G$38,نسب!$A$4:$C$100,2,0) -> 5 | N69: 334 | O69: 274 | P69: 0
H70: حديد | I70: =VLOOKUP($B$5,'الارقام القياسية 2016'!$A$2:$I$73,4,0) -> 263.7 | J70: =VLOOKUP($C$5,'الارقام القياسية 2016'!$A$2:$I$73,4,0) -> 270.2 | K70: =VLOOKUP($G$68,نسب!$A$4:$T$100,6,0) -> 0 | L70: =VLOOKUP($G$38,نسب!$A$4:$C$100,3,0) -> 120 | M70: =VLOOKUP($G$38,نسب!$A$4:$C$100,2,0) -> 5 | N70: 334 | O70: 274 | P70: 0
H71: اسفلت | I71: =VLOOKUP($B$5,'الارقام القياسية 2016'!$A$2:$I$73,5,0) -> 311 | J71: =VLOOKUP($C$5,'الارقام القياسية 2016'!$A$2:$I$73,5,0) -> 311 | K71: =VLOOKUP($G$68,نسب!$A$4:$T$100,7,0) -> 0 | L71: =VLOOKUP($G$38,نسب!$A$4:$C$100,3,0) -> 120 | M71: =VLOOKUP($G$38,نسب!$A$4:$C$100,2,0) -> 5 | N71: 334 | O71: 274 | P71: 0
H72: قطاعات معدنية | I72: =VLOOKUP($B$5,'الارقام القياسية 2016'!$A$2:$I$73,6,0) -> 250.6 | J72: =VLOOKUP($C$5,'الارقام القياسية 2016'!$A$2:$I$73,6,0) -> 233.5 | K72: =VLOOKUP($G$68,نسب!$A$4:$T$100,8,0) -> 0 | L72: =VLOOKUP($G$38,نسب!$A$4:$C$100,3,0) -> 120 | M72: =VLOOKUP($G$38,نسب!$A$4:$C$100,2,0) -> 5 | N72: 334 | O72: 274 | P72: 0
H73: غلاف معدني | I73: =VLOOKUP($B$5,'الارقام القياسية 2016'!$A$2:$I$73,7,0) -> 278.2 | J73: =VLOOKUP($C$5,'الارقام القياسية 2016'!$A$2:$I$73,7,0) -> 238.5 | K73: =VLOOKUP($G$68,نسب!$A$4:$T$100,9,0) -> 0 | L73: =VLOOKUP($G$38,نسب!$A$4:$C$100,3,0) -> 120 | M73: =VLOOKUP($G$38,نسب!$A$4:$C$100,2,0) -> 5 | N73: 334 | O73: 274 | P73: 0
H74: زوايا وكمرات | I74: =VLOOKUP($B$5,'الارقام القياسية 2016'!$A$2:$I$73,8,0) -> 271.6 | J74: =VLOOKUP($C$5,'الارقام القياسية 2016'!$A$2:$I$73,8,0) -> 276.9 | K74: =VLOOKUP($G$68,نسب!$A$4:$T$100,10,0) -> 0 | L74: =VLOOKUP($G$38,نسب!$A$4:$C$100,3,0) -> 120 | M74: =VLOOKUP($G$38,نسب!$A$4:$C$100,2,0) -> 5 | N74: 334 | O74: 274 | P74: 0
H75: مواسير صلب | I75: =VLOOKUP($B$5,'الارقام القياسية 2016'!$A$2:$I$73,9,0) -> 0 | J75: =VLOOKUP($C$5,'الارقام القياسية 2016'!$A$2:$I$73,9,0) -> 0 | K75: =VLOOKUP($G$48,نسب!$A$4:$T$100,11,0) -> 0 | L75: =VLOOKUP($G$38,نسب!$A$4:$C$100,3,0) -> 120 | M75: =VLOOKUP($G$38,نسب!$A$4:$C$100,2,0) -> 5 | N75: 334 | O75: 274
G77: رقم البند | H77: البند | I77: سعر فتح | J77: سعر مستخلص | K77: نسبة التأثير | L77: كمية | M77: سعر | N77: عدد الأيام | O77: الأيام الكلية | P77: الإجمالي
G78: 5 | H78: سولار | I78: =VLOOKUP($B$5,'الارقام القياسية 2016'!$A$2:$I$73,2,0) -> 266.2 | J78: =VLOOKUP($C$5,'الارقام القياسية 2016'!$A$2:$I$73,2,0) -> 319.6 | K78: =VLOOKUP($G$78,نسب!$A$4:$T$100,4,0) -> 0.2 | L78: =VLOOKUP($G$38,نسب!$A$4:$C$100,3,0) -> 120 | M78: =VLOOKUP($G$38,نسب!$A$4:$C$100,2,0) -> 5 | N78: =$E$4 -> 334 | O78: =$D$5-$C$5 -> 274 | P78: =IFERROR((I78*J78)/I78*K78*L78*M78*N78/O78,"") -> 46750.24818
H79: اسمنت بورتلاند | I79: =VLOOKUP($B$5,'الارقام القياسية 2016'!$A$2:$I$73,3,0) -> 131.9 | J79: =VLOOKUP($C$5,'الارقام القياسية 2016'!$A$2:$I$73,3,0) -> 137.6 | K79: =VLOOKUP($G$78,نسب!$A$4:$T$100,5,0) -> 0 | L79: =VLOOKUP($G$38,نسب!$A$4:$C$100,3,0) -> 120 | M79: =VLOOKUP($G$38,نسب!$A$4:$C$100,2,0) -> 5 | N79: 334 | O79: 274 | P79: 0
H80: حديد | I80: =VLOOKUP($B$5,'الارقام القياسية 2016'!$A$2:$I$73,4,0) -> 263.7 | J80: =VLOOKUP($C$5,'الارقام القياسية 2016'!$A$2:$I$73,4,0) -> 270.2 | K80: =VLOOKUP($G$78,نسب!$A$4:$T$100,6,0) -> 0 | L80: =VLOOKUP($G$38,نسب!$A$4:$C$100,3,0) -> 120 | M80: =VLOOKUP($G$38,نسب!$A$4:$C$100,2,0) -> 5 | N80: 334 | O80: 274 | P80: 0
H81: اسفلت | I81: =VLOOKUP($B$5,'الارقام القياسية 2016'!$A$2:$I$73,5,0) -> 311 | J81: =VLOOKUP($C$5,'الارقام القياسية 2016'!$A$2:$I$73,5,0) -> 311 | K81: =VLOOKUP($G$78,نسب!$A$4:$T$100,7,0) -> 0 | L81: =VLOOKUP($G$38,نسب!$A$4:$C$100,3,0) -> 120 | M81: =VLOOKUP($G$38,نسب!$A$4:$C$100,2,0) -> 5 | N81: 334 | O81: 274 | P81: 0
H82: قطاعات معدنية | I82: =VLOOKUP($B$5,'الارقام القياسية 2016'!$A$2:$I$73,6,0) -> 250.6 | J82: =VLOOKUP($C$5,'الارقام القياسية 2016'!$A$2:$I$73,6,0) -> 233.5 | K82: =VLOOKUP($G$78,نسب!$A$4:$T$100,8,0) -> 0 | L82: =VLOOKUP($G$38,نسب!$A$4:$C$100,3,0) -> 120 | M82: =VLOOKUP($G$38,نسب!$A$4:$C$100,2,0) -> 5 | N82: 334 | O82: 274 | P82: 0
H83: غلاف معدني | I83: =VLOOKUP($B$5,'الارقام القياسية 2016'!$A$2:$I$73,7,0) -> 278.2 | J83: =VLOOKUP($C$5,'الارقام القياسية 2016'!$A$2:$I$73,7,0) -> 238.5 | K83: =VLOOKUP($G$78,نسب!$A$4:$T$100,9,0) -> 0 | L83: =VLOOKUP($G$38,نسب!$A$4:$C$100,3,0) -> 120 | M83: =VLOOKUP($G$38,نسب!$A$4:$C$100,2,0) -> 5 | N83: 334 | O83: 274 | P83: 0
H84: زوايا وكمرات | I84: =VLOOKUP($B$5,'الارقام القياسية 2016'!$A$2:$I$73,8,0) -> 271.6 | J84: =VLOOKUP($C$5,'الارقام القياسية 2016'!$A$2:$I$73,8,0) -> 276.9 | K84: =VLOOKUP($G$78,نسب!$A$4:$T$100,10,0) -> 0 | L84: =VLOOKUP($G$38,نسب!$A$4:$C$100,3,0) -> 120 | M84: =VLOOKUP($G$38,نسب!$A$4:$C$100,2,0) -> 5 | N84: 334 | O84: 274 | P84: 0
H85: مواسير صلب | I85: =VLOOKUP($B$5,'الارقام القياسية 2016'!$A$2:$I$73,9,0) -> 0 | J85: =VLOOKUP($C$5,'الارقام القياسية 2016'!$A$2:$I$73,9,0) -> 0 | K85: =VLOOKUP($G$78,نسب!$A$4:$T$100,11,0) -> 0 | L85: =VLOOKUP($G$38,نسب!$A$4:$C$100,3,0) -> 120 | M85: =VLOOKUP($G$38,نسب!$A$4:$C$100,2,0) -> 5 | N85: 334 | O85: 274
G87: رقم البند | H87: البند | I87: سعر فتح | J87: سعر مستخلص | K87: نسبة التأثير | L87: كمية | M87: سعر | N87: عدد الأيام | O87: الأيام الكلية | P87: الإجمالي
G88: 6 | H88: سولار | I88: =VLOOKUP($B$5,'الارقام القياسية 2016'!$A$2:$I$73,2,0) -> 266.2 | J88: =VLOOKUP($C$5,'الارقام القياسية 2016'!$A$2:$I$73,2,0) -> 319.6 | K88: =VLOOKUP($G$88,نسب!$A$4:$T$100,4,0) -> 0.2 | L88: =VLOOKUP($G$38,نسب!$A$4:$C$100,3,0) -> 120 | M88: =VLOOKUP($G$38,نسب!$A$4:$C$100,2,0) -> 5 | N88: =$E$4 -> 334 | O88: =$D$5-$C$5 -> 274 | P88: =IFERROR((I88*J88)/I88*K88*L88*M88*N88/O88,"") -> 46750.24818
H89: اسمنت بورتلاند | I89: =VLOOKUP($B$5,'الارقام القياسية 2016'!$A$2:$I$73,3,0) -> 131.9 | J89: =VLOOKUP($C$5,'الارقام القياسية 2016'!$A$2:$I$73,3,0) -> 137.6 | K89: =VLOOKUP($G$88,نسب!$A$4:$T$100,5,0) -> 0 | L89: =VLOOKUP($G$38,نسب!$A$4:$C$100,3,0) -> 120 | M89: =VLOOKUP($G$38,نسب!$A$4:$C$100,2,0) -> 5 | N89: 334 | O89: 274 | P89: 0
H90: حديد | I90: =VLOOKUP($B$5,'الارقام القياسية 2016'!$A$2:$I$73,4,0) -> 263.7 | J90: =VLOOKUP($C$5,'الارقام القياسية 2016'!$A$2:$I$73,4,0) -> 270.2 | K90: =VLOOKUP($G$88,نسب!$A$4:$T$100,6,0) -> 0 | L90: =VLOOKUP($G$38,نسب!$A$4:$C$100,3,0) -> 120 | M90: =VLOOKUP($G$38,نسب!$A$4:$C$100,2,0) -> 5 | N90: 334 | O90: 274 | P90: 0
H91: اسفلت | I91: =VLOOKUP($B$5,'الارقام القياسية 2016'!$A$2:$I$73,5,0) -> 311 | J91: =VLOOKUP($C$5,'الارقام القياسية 2016'!$A$2:$I$73,5,0) -> 311 | K91: =VLOOKUP($G$88,نسب!$A$4:$T$100,7,0) -> 0 | L91: =VLOOKUP($G$38,نسب!$A$4:$C$100,3,0) -> 120 | M91: =VLOOKUP($G$38,نسب!$A$4:$C$100,2,0) -> 5 | N91: 334 | O91: 274 | P91: 0
H92: قطاعات معدنية | I92: =VLOOKUP($B$5,'الارقام القياسية 2016'!$A$2:$I$73,6,0) -> 250.6 | J92: =VLOOKUP($C$5,'الارقام القياسية 2016'!$A$2:$I$73,6,0) -> 233.5 | K92: =VLOOKUP($G$88,نسب!$A$4:$T$100,8,0) -> 0 | L92: =VLOOKUP($G$38,نسب!$A$4:$C$100,3,0) -> 120 | M92: =VLOOKUP($G$38,نسب!$A$4:$C$100,2,0) -> 5 | N92: 334 | O92: 274 | P92: 0
H93: غلاف معدني | I93: =VLOOKUP($B$5,'الارقام القياسية 2016'!$A$2:$I$73,7,0) -> 278.2 | J93: =VLOOKUP($C$5,'الارقام القياسية 2016'!$A$2:$I$73,7,0) -> 238.5 | K93: =VLOOKUP($G$88,نسب!$A$4:$T$100,9,0) -> 0 | L93: =VLOOKUP($G$38,نسب!$A$4:$C$100,3,0) -> 120 | M93: =VLOOKUP($G$38,نسب!$A$4:$C$100,2,0) -> 5 | N93: 334 | O93: 274 | P93: 0
H94: زوايا وكمرات | I94: =VLOOKUP($B$5,'الارقام القياسية 2016'!$A$2:$I$73,8,0) -> 271.6 | J94: =VLOOKUP($C$5,'الارقام القياسية 2016'!$A$2:$I$73,8,0) -> 276.9 | K94: =VLOOKUP($G$88,نسب!$A$4:$T$100,10,0) -> 0 | L94: =VLOOKUP($G$38,نسب!$A$4:$C$100,3,0) -> 120 | M94: =VLOOKUP($G$38,نسب!$A$4:$C$100,2,0) -> 5 | N94: 334 | O94: 274 | P94: 0
H95: مواسير صلب | I95: =VLOOKUP($B$5,'الارقام القياسية 2016'!$A$2:$I$73,9,0) -> 0 | J95: =VLOOKUP($C$5,'الارقام القياسية 2016'!$A$2:$I$73,9,0) -> 0 | K95: =VLOOKUP($G$88,نسب!$A$4:$T$100,11,0) -> 0 | L95: =VLOOKUP($G$38,نسب!$A$4:$C$100,3,0) -> 120 | M95: =VLOOKUP($G$38,نسب!$A$4:$C$100,2,0) -> 5 | N95: 334 | O95: 274
G97: رقم البند | H97: البند | I97: سعر فتح | J97: سعر مستخلص | K97: نسبة التأثير | L97: كمية | M97: سعر | N97: عدد الأيام | O97: الأيام الكلية | P97: الإجمالي
G98: 7 | H98: سولار | I98: =VLOOKUP($B$5,'الارقام القياسية 2016'!$A$2:$I$73,2,0) -> 266.2 | J98: =VLOOKUP($C$5,'الارقام القياسية 2016'!$A$2:$I$73,2,0) -> 319.6 | K98: =VLOOKUP($G$98,نسب!$A$4:$T$100,4,0) -> 0.1 | L98: =VLOOKUP($G$38,نسب!$A$4:$C$100,3,0) -> 120 | M98: =VLOOKUP($G$38,نسب!$A$4:$C$100,2,0) -> 5 | N98: =$E$4 -> 334 | O98: =$D$5-$C$5 -> 274 | P98: =IFERROR((I98*J98)/I98*K98*L98*M98*N98/O98,"") -> 23375.12409
H99: اسمنت بورتلاند | I99: =VLOOKUP($B$5,'الارقام القياسية 2016'!$A$2:$I$73,3,0) -> 131.9 | J99: =VLOOKUP($C$5,'الارقام القياسية 2016'!$A$2:$I$73,3,0) -> 137.6 | K99: =VLOOKUP($G$98,نسب!$A$4:$T$100,5,0) -> 0 | L99: =VLOOKUP($G$38,نسب!$A$4:$C$100,3,0) -> 120 | M99: =VLOOKUP($G$38,نسب!$A$4:$C$100,2,0) -> 5 | N99: 334 | O99: 274 | P99: 0
H100: حديد | I100: =VLOOKUP($B$5,'الارقام القياسية 2016'!$A$2:$I$73,4,0) -> 263.7 | J100: =VLOOKUP($C$5,'الارقام القياسية 2016'!$A$2:$I$73,4,0) -> 270.2 | K100: =VLOOKUP($G$98,نسب!$A$4:$T$100,6,0) -> 0 | L100: =VLOOKUP($G$38,نسب!$A$4:$C$100,3,0) -> 120 | M100: =VLOOKUP($G$38,نسب!$A$4:$C$100,2,0) -> 5 | N100: 334 | O100: 274 | P100: 0
H101: اسفلت | I101: =VLOOKUP($B$5,'الارقام القياسية 2016'!$A$2:$I$73,5,0) -> 311 | J101: =VLOOKUP($C$5,'الارقام القياسية 2016'!$A$2:$I$73,5,0) -> 311 | K101: =VLOOKUP($G$98,نسب!$A$4:$T$100,7,0) -> 0.75 | L101: =VLOOKUP($G$38,نسب!$A$4:$C$100,3,0) -> 120 | M101: =VLOOKUP($G$38,نسب!$A$4:$C$100,2,0) -> 5 | N101: 334 | O101: 274 | P101: 170595.9854
H102: قطاعات معدنية | I102: =VLOOKUP($B$5,'الارقام القياسية 2016'!$A$2:$I$73,6,0) -> 250.6 | J102: =VLOOKUP($C$5,'الارقام القياسية 2016'!$A$2:$I$73,6,0) -> 233.5 | K102: =VLOOKUP($G$98,نسب!$A$4:$T$100,8,0) -> 0 | L102: =VLOOKUP($G$38,نسب!$A$4:$C$100,3,0) -> 120 | M102: =VLOOKUP($G$38,نسب!$A$4:$C$100,2,0) -> 5 | N102: 334 | O102: 274 | P102: 0
H103: غلاف معدني | I103: =VLOOKUP($B$5,'الارقام القياسية 2016'!$A$2:$I$73,7,0) -> 278.2 | J103: =VLOOKUP($C$5,'الارقام القياسية 2016'!$A$2:$I$73,7,0) -> 238.5 | K103: =VLOOKUP($G$98,نسب!$A$4:$T$100,9,0) -> 0 | L103: =VLOOKUP($G$38,نسب!$A$4:$C$100,3,0) -> 120 | M103: =VLOOKUP($G$38,نسب!$A$4:$C$100,2,0) -> 5 | N103: 334 | O103: 274 | P103: 0
H104: زوايا وكمرات | I104: =VLOOKUP($B$5,'الارقام القياسية 2016'!$A$2:$I$73,8,0) -> 271.6 | J104: =VLOOKUP($C$5,'الارقام القياسية 2016'!$A$2:$I$73,8,0) -> 276.9 | K104: =VLOOKUP($G$98,نسب!$A$4:$T$100,10,0) -> 0 | L104: =VLOOKUP($G$38,نسب!$A$4:$C$100,3,0) -> 120 | M104: =VLOOKUP($G$38,نسب!$A$4:$C$100,2,0) -> 5 | N104: 334 | O104: 274 | P104: 0
H105: مواسير صلب | I105: =VLOOKUP($B$5,'الارقام القياسية 2016'!$A$2:$I$73,9,0) -> 0 | J105: =VLOOKUP($C$5,'الارقام القياسية 2016'!$A$2:$I$73,9,0) -> 0 | K105: =VLOOKUP($G$98,نسب!$A$4:$T$100,11,0) -> 0 | L105: =VLOOKUP($G$38,نسب!$A$4:$C$100,3,0) -> 120 | M105: =VLOOKUP($G$38,نسب!$A$4:$C$100,2,0) -> 5 | N105: 334 | O105: 274
G107: رقم البند | H107: البند | I107: سعر فتح | J107: سعر مستخلص | K107: نسبة التأثير | L107: كمية | M107: سعر | N107: عدد الأيام | O107: الأيام الكلية | P107: الإجمالي
G108: 8 | H108: سولار | I108: =VLOOKUP($B$5,'الارقام القياسية 2016'!$A$2:$I$73,2,0) -> 266.2 | J108: =VLOOKUP($C$5,'الارقام القياسية 2016'!$A$2:$I$73,2,0) -> 319.6 | K108: =VLOOKUP($G$108,نسب!$A$4:$T$100,4,0) -> 0.15 | L108: =VLOOKUP($G$38,نسب!$A$4:$C$100,3,0) -> 120 | M108: =VLOOKUP($G$38,نسب!$A$4:$C$100,2,0) -> 5 | N108: =$E$4 -> 334 | O108: =$D$5-$C$5 -> 274 | P108: =IFERROR((I108*J108)/I108*K108*L108*M108*N108/O108,"") -> 35062.68613
H109: اسمنت بورتلاند | I109: =VLOOKUP($B$5,'الارقام القياسية 2016'!$A$2:$I$73,3,0) -> 131.9 | J109: =VLOOKUP($C$5,'الارقام القياسية 2016'!$A$2:$I$73,3,0) -> 137.6 | K109: =VLOOKUP($G$108,نسب!$A$4:$T$100,5,0) -> 0 | L109: =VLOOKUP($G$38,نسب!$A$4:$C$100,3,0) -> 120 | M109: =VLOOKUP($G$38,نسب!$A$4:$C$100,2,0) -> 5 | N109: 334 | O109: 274 | P109: 0
H110: حديد | I110: =VLOOKUP($B$5,'الارقام القياسية 2016'!$A$2:$I$73,4,0) -> 263.7 | J110: =VLOOKUP($C$5,'الارقام القياسية 2016'!$A$2:$I$73,4,0) -> 270.2 | K110: =VLOOKUP($G$108,نسب!$A$4:$T$100,6,0) -> 0 | L110: =VLOOKUP($G$38,نسب!$A$4:$C$100,3,0) -> 120 | M110: =VLOOKUP($G$38,نسب!$A$4:$C$100,2,0) -> 5 | N110: 334 | O110: 274 | P110: 0
H111: اسفلت | I111: =VLOOKUP($B$5,'الارقام القياسية 2016'!$A$2:$I$73,5,0) -> 311 | J111: =VLOOKUP($C$5,'الارقام القياسية 2016'!$A$2:$I$73,5,0) -> 311 | K111: =VLOOKUP($G$108,نسب!$A$4:$T$100,7,0) -> 0.5 | L111: =VLOOKUP($G$38,نسب!$A$4:$C$100,3,0) -> 120 | M111: =VLOOKUP($G$38,نسب!$A$4:$C$100,2,0) -> 5 | N111: 334 | O111: 274 | P111: 113730.6569
H112: قطاعات معدنية | I112: =VLOOKUP($B$5,'الارقام القياسية 2016'!$A$2:$I$73,6,0) -> 250.6 | J112: =VLOOKUP($C$5,'الارقام القياسية 2016'!$A$2:$I$73,6,0) -> 233.5 | K112: =VLOOKUP($G$108,نسب!$A$4:$T$100,8,0) -> 0 | L112: =VLOOKUP($G$38,نسب!$A$4:$C$100,3,0) -> 120 | M112: =VLOOKUP($G$38,نسب!$A$4:$C$100,2,0) -> 5 | N112: 334 | O112: 274 | P112: 0
H113: غلاف معدني | I113: =VLOOKUP($B$5,'الارقام القياسية 2016'!$A$2:$I$73,7,0) -> 278.2 | J113: =VLOOKUP($C$5,'الارقام القياسية 2016'!$A$2:$I$73,7,0) -> 238.5 | K113: =VLOOKUP($G$108,نسب!$A$4:$T$100,9,0) -> 0 | L113: =VLOOKUP($G$38,نسب!$A$4:$C$100,3,0) -> 120 | M113: =VLOOKUP($G$38,نسب!$A$4:$C$100,2,0) -> 5 | N113: 334 | O113: 274 | P113: 0
H114: زوايا وكمرات | I114: =VLOOKUP($B$5,'الارقام القياسية 2016'!$A$2:$I$73,8,0) -> 271.6 | J114: =VLOOKUP($C$5,'الارقام القياسية 2016'!$A$2:$I$73,8,0) -> 276.9 | K114: =VLOOKUP($G$108,نسب!$A$4:$T$100,10,0) -> 0 | L114: =VLOOKUP($G$38,نسب!$A$4:$C$100,3,0) -> 120 | M114: =VLOOKUP($G$38,نسب!$A$4:$C$100,2,0) -> 5 | N114: 334 | O114: 274 | P114: 0
H115: مواسير صلب | I115: =VLOOKUP($B$5,'الارقام القياسية 2016'!$A$2:$I$73,9,0) -> 0 | J115: =VLOOKUP($C$5,'الارقام القياسية 2016'!$A$2:$I$73,9,0) -> 0 | K115: =VLOOKUP($G$108,نسب!$A$4:$T$100,11,0) -> 0 | L115: =VLOOKUP($G$38,نسب!$A$4:$C$100,3,0) -> 120 | M115: =VLOOKUP($G$38,نسب!$A$4:$C$100,2,0) -> 5 | N115: 334 | O115: 274
G117: رقم البند | H117: البند | I117: سعر فتح | J117: سعر مستخلص | K117: نسبة التأثير | L117: كمية | M117: سعر | N117: عدد الأيام | O117: الأيام الكلية | P117: الإجمالي
G118: 9 | H118: سولار | I118: =VLOOKUP($B$5,'الارقام القياسية 2016'!$A$2:$I$73,2,0) -> 266.2 | J118: =VLOOKUP($C$5,'الارقام القياسية 2016'!$A$2:$I$73,2,0) -> 319.6 | K118: =VLOOKUP($G$118,نسب!$A$4:$T$100,4,0) -> 0.15 | L118: =VLOOKUP($G$38,نسب!$A$4:$C$100,3,0) -> 120 | M118: =VLOOKUP($G$38,نسب!$A$4:$C$100,2,0) -> 5 | N118: =$E$4 -> 334 | O118: =$D$5-$C$5 -> 274 | P118: =IFERROR((I118*J118)/I118*K118*L118*M118*N118/O118,"") -> 35062.68613
H119: اسمنت بورتلاند | I119: =VLOOKUP($B$5,'الارقام القياسية 2016'!$A$2:$I$73,3,0) -> 131.9 | J119: =VLOOKUP($C$5,'الارقام القياسية 2016'!$A$2:$I$73,3,0) -> 137.6 | K119: =VLOOKUP($G$118,نسب!$A$4:$T$100,5,0) -> 0 | L119: =VLOOKUP($G$38,نسب!$A$4:$C$100,3,0) -> 120 | M119: =VLOOKUP($G$38,نسب!$A$4:$C$100,2,0) -> 5 | N119: 334 | O119: 274 | P119: 0
H120: حديد | I120: =VLOOKUP($B$5,'الارقام القياسية 2016'!$A$2:$I$73,4,0) -> 263.7 | J120: =VLOOKUP($C$5,'الارقام القياسية 2016'!$A$2:$I$73,4,0) -> 270.2 | K120: =VLOOKUP($G$118,نسب!$A$4:$T$100,6,0) -> 0 | L120: =VLOOKUP($G$38,نسب!$A$4:$C$100,3,0) -> 120 | M120: =VLOOKUP($G$38,نسب!$A$4:$C$100,2,0) -> 5 | N120: 334 | O120: 274 | P120: 0
H121: اسفلت | I121: =VLOOKUP($B$5,'الارقام القياسية 2016'!$A$2:$I$73,5,0) -> 311 | J121: =VLOOKUP($C$5,'الارقام القياسية 2016'!$A$2:$I$73,5,0) -> 311 | K121: =VLOOKUP($G$118,نسب!$A$4:$T$100,7,0) -> 0.65 | L121: =VLOOKUP($G$38,نسب!$A$4:$C$100,3,0) -> 120 | M121: =VLOOKUP($G$38,نسب!$A$4:$C$100,2,0) -> 5 | N121: 334 | O121: 274 | P121: 147849.854
H122: قطاعات معدنية | I122: =VLOOKUP($B$5,'الارقام القياسية 2016'!$A$2:$I$73,6,0) -> 250.6 | J122: =VLOOKUP($C$5,'الارقام القياسية 2016'!$A$2:$I$73,6,0) -> 233.5 | K122: =VLOOKUP($G$118,نسب!$A$4:$T$100,8,0) -> 0 | L122: =VLOOKUP($G$38,نسب!$A$4:$C$100,3,0) -> 120 | M122: =VLOOKUP($G$38,نسب!$A$4:$C$100,2,0) -> 5 | N122: 334 | O122: 274 | P122: 0
H123: غلاف معدني | I123: =VLOOKUP($B$5,'الارقام القياسية 2016'!$A$2:$I$73,7,0) -> 278.2 | J123: =VLOOKUP($C$5,'الارقام القياسية 2016'!$A$2:$I$73,7,0) -> 238.5 | K123: =VLOOKUP($G$118,نسب!$A$4:$T$100,9,0) -> 0 | L123: =VLOOKUP($G$38,نسب!$A$4:$C$100,3,0) -> 120 | M123: =VLOOKUP($G$38,نسب!$A$4:$C$100,2,0) -> 5 | N123: 334 | O123: 274 | P123: 0
H124: زوايا وكمرات | I124: =VLOOKUP($B$5,'الارقام القياسية 2016'!$A$2:$I$73,8,0) -> 271.6 | J124: =VLOOKUP($C$5,'الارقام القياسية 2016'!$A$2:$I$73,8,0) -> 276.9 | K124: =VLOOKUP($G$118,نسب!$A$4:$T$100,10,0) -> 0 | L124: =VLOOKUP($G$38,نسب!$A$4:$C$100,3,0) -> 120 | M124: =VLOOKUP($G$38,نسب!$A$4:$C$100,2,0) -> 5 | N124: 334 | O124: 274 | P124: 0
H125: مواسير صلب | I125: =VLOOKUP($B$5,'الارقام القياسية 2016'!$A$2:$I$73,9,0) -> 0 | J125: =VLOOKUP($C$5,'الارقام القياسية 2016'!$A$2:$I$73,9,0) -> 0 | K125: =VLOOKUP($G$118,نسب!$A$4:$T$100,11,0) -> 0 | L125: =VLOOKUP($G$38,نسب!$A$4:$C$100,3,0) -> 120 | M125: =VLOOKUP($G$38,نسب!$A$4:$C$100,2,0) -> 5 | N125: 334 | O125: 274
G127: رقم البند | H127: البند | I127: سعر فتح | J127: سعر مستخلص | K127: نسبة التأثير | L127: كمية | M127: سعر | N127: عدد الأيام | O127: الأيام الكلية | P127: الإجمالي
G128: 10 | H128: سولار | I128: =VLOOKUP($B$5,'الارقام القياسية 2016'!$A$2:$I$73,2,0) -> 266.2 | J128: =VLOOKUP($C$5,'الارقام القياسية 2016'!$A$2:$I$73,2,0) -> 319.6 | K128: =VLOOKUP($G$128,نسب!$A$4:$T$100,4,0) -> 0.15 | L128: =VLOOKUP($G$38,نسب!$A$4:$C$100,3,0) -> 120 | M128: =VLOOKUP($G$38,نسب!$A$4:$C$100,2,0) -> 5 | N128: =$E$4 -> 334 | O128: =$D$5-$C$5 -> 274 | P128: =IFERROR((I128*J128)/I128*K128*L128*M128*N128/O128,"") -> 35062.68613
H129: اسمنت بورتلاند | I129: =VLOOKUP($B$5,'الارقام القياسية 2016'!$A$2:$I$73,3,0) -> 131.9 | J129: =VLOOKUP($C$5,'الارقام القياسية 2016'!$A$2:$I$73,3,0) -> 137.6 | K129: =VLOOKUP($G$128,نسب!$A$4:$T$100,5,0) -> 0 | L129: =VLOOKUP($G$38,نسب!$A$4:$C$100,3,0) -> 120 | M129: =VLOOKUP($G$38,نسب!$A$4:$C$100,2,0) -> 5 | N129: 334 | O129: 274 | P129: 0
H130: حديد | I130: =VLOOKUP($B$5,'الارقام القياسية 2016'!$A$2:$I$73,4,0) -> 263.7 | J130: =VLOOKUP($C$5,'الارقام القياسية 2016'!$A$2:$I$73,4,0) -> 270.2 | K130: =VLOOKUP($G$128,نسب!$A$4:$T$100,6,0) -> 0 | L130: =VLOOKUP($G$38,نسب!$A$4:$C$100,3,0) -> 120 | M130: =VLOOKUP($G$38,نسب!$A$4:$C$100,2,0) -> 5 | N130: 334 | O130: 274 | P130: 0
H131: اسفلت | I131: =VLOOKUP($B$5,'الارقام القياسية 2016'!$A$2:$I$73,5,0) -> 311 | J131: =VLOOKUP($C$5,'الارقام القياسية 2016'!$A$2:$I$73,5,0) -> 311 | K131: =VLOOKUP($G$128,نسب!$A$4:$T$100,7,0) -> 0.5 | L131: =VLOOKUP($G$38,نسب!$A$4:$C$100,3,0) -> 120 | M131: =VLOOKUP($G$38,نسب!$A$4:$C$100,2,0) -> 5 | N131: 334 | O131: 274 | P131: 113730.6569
H132: قطاعات معدنية | I132: =VLOOKUP($B$5,'الارقام القياسية 2016'!$A$2:$I$73,6,0) -> 250.6 | J132: =VLOOKUP($C$5,'الارقام القياسية 2016'!$A$2:$I$73,6,0) -> 233.5 | K132: =VLOOKUP($G$128,نسب!$A$4:$T$100,8,0) -> 0 | L132: =VLOOKUP($G$38,نسب!$A$4:$C$100,3,0) -> 120 | M132: =VLOOKUP($G$38,نسب!$A$4:$C$100,2,0) -> 5 | N132: 334 | O132: 274 | P132: 0
H133: غلاف معدني | I133: =VLOOKUP($B$5,'الارقام القياسية 2016'!$A$2:$I$73,7,0) -> 278.2 | J133: =VLOOKUP($C$5,'الارقام القياسية 2016'!$A$2:$I$73,7,0) -> 238.5 | K133: =VLOOKUP($G$128,نسب!$A$4:$T$100,9,0) -> 0 | L133: =VLOOKUP($G$38,نسب!$A$4:$C$100,3,0) -> 120 | M133: =VLOOKUP($G$38,نسب!$A$4:$C$100,2,0) -> 5 | N133: 334 | O133: 274 | P133: 0
H134: زوايا وكمرات | I134: =VLOOKUP($B$5,'الارقام القياسية 2016'!$A$2:$I$73,8,0) -> 271.6 | J134: =VLOOKUP($C$5,'الارقام القياسية 2016'!$A$2:$I$73,8,0) -> 276.9 | K134: =VLOOKUP($G$128,نسب!$A$4:$T$100,10,0) -> 0 | L134: =VLOOKUP($G$38,نسب!$A$4:$C$100,3,0) -> 120 | M134: =VLOOKUP($G$38,نسب!$A$4:$C$100,2,0) -> 5 | N134: 334 | O134: 274 | P134: 0
H135: مواسير صلب | I135: =VLOOKUP($B$5,'الارقام القياسية 2016'!$A$2:$I$73,9,0) -> 0 | J135: =VLOOKUP($C$5,'الارقام القياسية 2016'!$A$2:$I$73,9,0) -> 0 | K135: =VLOOKUP($G$128,نسب!$A$4:$T$100,11,0) -> 0 | L135: =VLOOKUP($G$38,نسب!$A$4:$C$100,3,0) -> 120 | M135: =VLOOKUP($G$38,نسب!$A$4:$C$100,2,0) -> 5 | N135: 334 | O135: 274
G137: رقم البند | H137: البند | I137: سعر فتح | J137: سعر مستخلص | K137: نسبة التأثير | L137: كمية | M137: سعر | N137: عدد الأيام | O137: الأيام الكلية | P137: الإجمالي
G138: 11 | H138: سولار | I138: =VLOOKUP($B$5,'الارقام القياسية 2016'!$A$2:$I$73,2,0) -> 266.2 | J138: =VLOOKUP($C$5,'الارقام القياسية 2016'!$A$2:$I$73,2,0) -> 319.6 | K138: =VLOOKUP($G$138,نسب!$A$4:$T$100,4,0) -> 0.15 | L138: =VLOOKUP($G$38,نسب!$A$4:$C$100,3,0) -> 120 | M138: =VLOOKUP($G$38,نسب!$A$4:$C$100,2,0) -> 5 | N138: =$E$4 -> 334 | O138: =$D$5-$C$5 -> 274 | P138: =IFERROR((I138*J138)/I138*K138*L138*M138*N138/O138,"") -> 35062.68613
H139: اسمنت بورتلاند | I139: =VLOOKUP($B$5,'الارقام القياسية 2016'!$A$2:$I$73,3,0) -> 131.9 | J139: =VLOOKUP($C$5,'الارقام القياسية 2016'!$A$2:$I$73,3,0) -> 137.6 | K139: =VLOOKUP($G$138,نسب!$A$4:$T$100,5,0) -> 0 | L139: =VLOOKUP($G$38,نسب!$A$4:$C$100,3,0) -> 120 | M139: =VLOOKUP($G$38,نسب!$A$4:$C$100,2,0) -> 5 | N139: 334 | O139: 274 | P139: 0
H140: حديد | I140: =VLOOKUP($B$5,'الارقام القياسية 2016'!$A$2:$I$73,4,0) -> 263.7 | J140: =VLOOKUP($C$5,'الارقام القياسية 2016'!$A$2:$I$73,4,0) -> 270.2 | K140: =VLOOKUP($G$138,نسب!$A$4:$T$100,6,0) -> 0 | L140: =VLOOKUP($G$38,نسب!$A$4:$C$100,3,0) -> 120 | M140: =VLOOKUP($G$38,نسب!$A$4:$C$100,2,0) -> 5 | N140: 334 | O140: 274 | P140: 0
H141: اسفلت | I141: =VLOOKUP($B$5,'الارقام القياسية 2016'!$A$2:$I$73,5,0) -> 311 | J141: =VLOOKUP($C$5,'الارقام القياسية 2016'!$A$2:$I$73,5,0) -> 311 | K141: =VLOOKUP($G$138,نسب!$A$4:$T$100,7,0) -> 0.5 | L141: =VLOOKUP($G$38,نسب!$A$4:$C$100,3,0) -> 120 | M141: =VLOOKUP($G$38,نسب!$A$4:$C$100,2,0) -> 5 | N141: 334 | O141: 274 | P141: 113730.6569
H142: قطاعات معدنية | I142: =VLOOKUP($B$5,'الارقام القياسية 2016'!$A$2:$I$73,6,0) -> 250.6 | J142: =VLOOKUP($C$5,'الارقام القياسية 2016'!$A$2:$I$73,6,0) -> 233.5 | K142: =VLOOKUP($G$138,نسب!$A$4:$T$100,8,0) -> 0 | L142: =VLOOKUP($G$38,نسب!$A$4:$C$100,3,0) -> 120 | M142: =VLOOKUP($G$38,نسب!$A$4:$C$100,2,0) -> 5 | N142: 334 | O142: 274 | P142: 0
H143: غلاف معدني | I143: =VLOOKUP($B$5,'الارقام القياسية 2016'!$A$2:$I$73,7,0) -> 278.2 | J143: =VLOOKUP($C$5,'الارقام القياسية 2016'!$A$2:$I$73,7,0) -> 238.5 | K143: =VLOOKUP($G$138,نسب!$A$4:$T$100,9,0) -> 0 | L143: =VLOOKUP($G$38,نسب!$A$4:$C$100,3,0) -> 120 | M143: =VLOOKUP($G$38,نسب!$A$4:$C$100,2,0) -> 5 | N143: 334 | O143: 274 | P143: 0
H144: زوايا وكمرات | I144: =VLOOKUP($B$5,'الارقام القياسية 2016'!$A$2:$I$73,8,0) -> 271.6 | J144: =VLOOKUP($C$5,'الارقام القياسية 2016'!$A$2:$I$73,8,0) -> 276.9 | K144: =VLOOKUP($G$138,نسب!$A$4:$T$100,10,0) -> 0 | L144: =VLOOKUP($G$38,نسب!$A$4:$C$100,3,0) -> 120 | M144: =VLOOKUP($G$38,نسب!$A$4:$C$100,2,0) -> 5 | N144: 334 | O144: 274 | P144: 0
H145: مواسير صلب | I145: =VLOOKUP($B$5,'الارقام القياسية 2016'!$A$2:$I$73,9,0) -> 0 | J145: =VLOOKUP($C$5,'الارقام القياسية 2016'!$A$2:$I$73,9,0) -> 0 | K145: =VLOOKUP($G$138,نسب!$A$4:$T$100,11,0) -> 0 | L145: =VLOOKUP($G$38,نسب!$A$4:$C$100,3,0) -> 120 | M145: =VLOOKUP($G$38,نسب!$A$4:$C$100,2,0) -> 5 | N145: 334 | O145: 274
G147: رقم البند | H147: البند | I147: سعر فتح | J147: سعر مستخلص | K147: نسبة التأثير | L147: كمية | M147: سعر | N147: عدد الأيام | O147: الأيام الكلية | P147: الإجمالي
G148: 12 | H148: سولار | I148: =VLOOKUP($B$5,'الارقام القياسية 2016'!$A$2:$I$73,2,0) -> 266.2 | J148: =VLOOKUP($C$5,'الارقام القياسية 2016'!$A$2:$I$73,2,0) -> 319.6 | K148: =VLOOKUP($G$148,نسب!$A$4:$T$100,4,0) -> 0.15 | L148: =VLOOKUP($G$38,نسب!$A$4:$C$100,3,0) -> 120 | M148: =VLOOKUP($G$38,نسب!$A$4:$C$100,2,0) -> 5 | N148: =$E$4 -> 334 | O148: =$D$5-$C$5 -> 274 | P148: =IFERROR((I148*J148)/I148*K148*L148*M148*N148/O148,"") -> 35062.68613
H149: اسمنت بورتلاند | I149: =VLOOKUP($B$5,'الارقام القياسية 2016'!$A$2:$I$73,3,0) -> 131.9 | J149: =VLOOKUP($C$5,'الارقام القياسية 2016'!$A$2:$I$73,3,0) -> 137.6 | K149: =VLOOKUP($G$148,نسب!$A$4:$T$100,5,0) -> 0.35 | L149: =VLOOKUP($G$38,نسب!$A$4:$C$100,3,0) -> 120 | M149: =VLOOKUP($G$38,نسب!$A$4:$C$100,2,0) -> 5 | N149: 334 | O149: 274 | P149: 35223.59124
H150: حديد | I150: =VLOOKUP($B$5,'الارقام القياسية 2016'!$A$2:$I$73,4,0) -> 263.7 | J150: =VLOOKUP($C$5,'الارقام القياسية 2016'!$A$2:$I$73,4,0) -> 270.2 | K150: =VLOOKUP($G$148,نسب!$A$4:$T$100,6,0) -> 0 | L150: =VLOOKUP($G$38,نسب!$A$4:$C$100,3,0) -> 120 | M150: =VLOOKUP($G$38,نسب!$A$4:$C$100,2,0) -> 5 | N150: 334 | O150: 274 | P150: 0
H151: اسفلت | I151: =VLOOKUP($B$5,'الارقام القياسية 2016'!$A$2:$I$73,5,0) -> 311 | J151: =VLOOKUP($C$5,'الارقام القياسية 2016'!$A$2:$I$73,5,0) -> 311 | K151: =VLOOKUP($G$148,نسب!$A$4:$T$100,7,0) -> 0 | L151: =VLOOKUP($G$38,نسب!$A$4:$C$100,3,0) -> 120 | M151: =VLOOKUP($G$38,نسب!$A$4:$C$100,2,0) -> 5 | N151: 334 | O151: 274 | P151: 0
H152: قطاعات معدنية | I152: =VLOOKUP($B$5,'الارقام القياسية 2016'!$A$2:$I$73,6,0) -> 250.6 | J152: =VLOOKUP($C$5,'الارقام القياسية 2016'!$A$2:$I$73,6,0) -> 233.5 | K152: =VLOOKUP($G$148,نسب!$A$4:$T$100,8,0) -> 0 | L152: =VLOOKUP($G$38,نسب!$A$4:$C$100,3,0) -> 120 | M152: =VLOOKUP($G$38,نسب!$A$4:$C$100,2,0) -> 5 | N152: 334 | O152: 274 | P152: 0
H153: غلاف معدني | I153: =VLOOKUP($B$5,'الارقام القياسية 2016'!$A$2:$I$73,7,0) -> 278.2 | J153: =VLOOKUP($C$5,'الارقام القياسية 2016'!$A$2:$I$73,7,0) -> 238.5 | K153: =VLOOKUP($G$148,نسب!$A$4:$T$100,9,0) -> 0 | L153: =VLOOKUP($G$38,نسب!$A$4:$C$100,3,0) -> 120 | M153: =VLOOKUP($G$38,نسب!$A$4:$C$100,2,0) -> 5 | N153: 334 | O153: 274 | P153: 0
H154: زوايا وكمرات | I154: =VLOOKUP($B$5,'الارقام القياسية 2016'!$A$2:$I$73,8,0) -> 271.6 | J154: =VLOOKUP($C$5,'الارقام القياسية 2016'!$A$2:$I$73,8,0) -> 276.9 | K154: =VLOOKUP($G$148,نسب!$A$4:$T$100,10,0) -> 0 | L154: =VLOOKUP($G$38,نسب!$A$4:$C$100,3,0) -> 120 | M154: =VLOOKUP($G$38,نسب!$A$4:$C$100,2,0) -> 5 | N154: 334 | O154: 274 | P154: 0
H155: مواسير صلب | I155: =VLOOKUP($B$5,'الارقام القياسية 2016'!$A$2:$I$73,9,0) -> 0 | J155: =VLOOKUP($C$5,'الارقام القياسية 2016'!$A$2:$I$73,9,0) -> 0 | K155: =VLOOKUP($G$148,نسب!$A$4:$T$100,11,0) -> 0 | L155: =VLOOKUP($G$38,نسب!$A$4:$C$100,3,0) -> 120 | M155: =VLOOKUP($G$38,نسب!$A$4:$C$100,2,0) -> 5 | N155: 334 | O155: 274
G157: رقم البند | H157: البند | I157: سعر فتح | J157: سعر مستخلص | K157: نسبة التأثير | L157: كمية | M157: سعر | N157: عدد الأيام | O157: الأيام الكلية | P157: الإجمالي
G158: 13 | H158: سولار | I158: =VLOOKUP($B$5,'الارقام القياسية 2016'!$A$2:$I$73,2,0) -> 266.2 | J158: =VLOOKUP($C$5,'الارقام القياسية 2016'!$A$2:$I$73,2,0) -> 319.6 | K158: =VLOOKUP($G$158,نسب!$A$4:$T$100,4,0) -> 0.15 | L158: =VLOOKUP($G$38,نسب!$A$4:$C$100,3,0) -> 120 | M158: =VLOOKUP($G$38,نسب!$A$4:$C$100,2,0) -> 5 | N158: =$E$4 -> 334 | O158: =$D$5-$C$5 -> 274 | P158: =IFERROR((I158*J158)/I158*K158*L158*M158*N158/O158,"") -> 35062.68613
H159: اسمنت بورتلاند | I159: =VLOOKUP($B$5,'الارقام القياسية 2016'!$A$2:$I$73,3,0) -> 131.9 | J159: =VLOOKUP($C$5,'الارقام القياسية 2016'!$A$2:$I$73,3,0) -> 137.6 | K159: =VLOOKUP($G$158,نسب!$A$4:$T$100,5,0) -> 0 | L159: =VLOOKUP($G$38,نسب!$A$4:$C$100,3,0) -> 120 | M159: =VLOOKUP($G$38,نسب!$A$4:$C$100,2,0) -> 5 | N159: 334 | O159: 274 | P159: 0
H160: حديد | I160: =VLOOKUP($B$5,'الارقام القياسية 2016'!$A$2:$I$73,4,0) -> 263.7 | J160: =VLOOKUP($C$5,'الارقام القياسية 2016'!$A$2:$I$73,4,0) -> 270.2 | K160: =VLOOKUP($G$158,نسب!$A$4:$T$100,6,0) -> 0 | L160: =VLOOKUP($G$38,نسب!$A$4:$C$100,3,0) -> 120 | M160: =VLOOKUP($G$38,نسب!$A$4:$C$100,2,0) -> 5 | N160: 334 | O160: 274 | P160: 0
H161: اسفلت | I161: =VLOOKUP($B$5,'الارقام القياسية 2016'!$A$2:$I$73,5,0) -> 311 | J161: =VLOOKUP($C$5,'الارقام القياسية 2016'!$A$2:$I$73,5,0) -> 311 | K161: =VLOOKUP($G$158,نسب!$A$4:$T$100,7,0) -> 0 | L161: =VLOOKUP($G$38,نسب!$A$4:$C$100,3,0) -> 120 | M161: =VLOOKUP($G$38,نسب!$A$4:$C$100,2,0) -> 5 | N161: 334 | O161: 274 | P161: 0
H162: قطاعات معدنية | I162: =VLOOKUP($B$5,'الارقام القياسية 2016'!$A$2:$I$73,6,0) -> 250.6 | J162: =VLOOKUP($C$5,'الارقام القياسية 2016'!$A$2:$I$73,6,0) -> 233.5 | K162: =VLOOKUP($G$158,نسب!$A$4:$T$100,8,0) -> 0 | L162: =VLOOKUP($G$38,نسب!$A$4:$C$100,3,0) -> 120 | M162: =VLOOKUP($G$38,نسب!$A$4:$C$100,2,0) -> 5 | N162: 334 | O162: 274 | P162: 0
H163: غلاف معدني | I163: =VLOOKUP($B$5,'الارقام القياسية 2016'!$A$2:$I$73,7,0) -> 278.2 | J163: =VLOOKUP($C$5,'الارقام القياسية 2016'!$A$2:$I$73,7,0) -> 238.5 | K163: =VLOOKUP($G$158,نسب!$A$4:$T$100,9,0) -> 0 | L163: =VLOOKUP($G$38,نسب!$A$4:$C$100,3,0) -> 120 | M163: =VLOOKUP($G$38,نسب!$A$4:$C$100,2,0) -> 5 | N163: 334 | O163: 274 | P163: 0
H164: زوايا وكمرات | I164: =VLOOKUP($B$5,'الارقام القياسية 2016'!$A$2:$I$73,8,0) -> 271.6 | J164: =VLOOKUP($C$5,'الارقام القياسية 2016'!$A$2:$I$73,8,0) -> 276.9 | K164: =VLOOKUP($G$158,نسب!$A$4:$T$100,10,0) -> 0 | L164: =VLOOKUP($G$38,نسب!$A$4:$C$100,3,0) -> 120 | M164: =VLOOKUP($G$38,نسب!$A$4:$C$100,2,0) -> 5 | N164: 334 | O164: 274 | P164: 0
H165: مواسير صلب | I165: =VLOOKUP($B$5,'الارقام القياسية 2016'!$A$2:$I$73,9,0) -> 0 | J165: =VLOOKUP($C$5,'الارقام القياسية 2016'!$A$2:$I$73,9,0) -> 0 | K165: =VLOOKUP($G$158,نسب!$A$4:$T$100,11,0) -> 0 | L165: =VLOOKUP($G$38,نسب!$A$4:$C$100,3,0) -> 120 | M165: =VLOOKUP($G$38,نسب!$A$4:$C$100,2,0) -> 5 | N165: 334 | O165: 274
G167: رقم البند | H167: البند | I167: سعر فتح | J167: سعر مستخلص | K167: نسبة التأثير | L167: كمية | M167: سعر | N167: عدد الأيام | O167: الأيام الكلية | P167: الإجمالي
G168: 14 | H168: سولار | I168: =VLOOKUP($B$5,'الارقام القياسية 2016'!$A$2:$I$73,2,0) -> 266.2 | J168: =VLOOKUP($C$5,'الارقام القياسية 2016'!$A$2:$I$73,2,0) -> 319.6 | K168: =VLOOKUP($G$168,نسب!$A$4:$T$100,4,0) -> 0.1 | L168: =VLOOKUP($G$38,نسب!$A$4:$C$100,3,0) -> 120 | M168: =VLOOKUP($G$38,نسب!$A$4:$C$100,2,0) -> 5 | N168: =$E$4 -> 334 | O168: =$D$5-$C$5 -> 274 | P168: =IFERROR((I168*J168)/I168*K168*L168*M168*N168/O168,"") -> 23375.12409
H169: اسمنت بورتلاند | I169: =VLOOKUP($B$5,'الارقام القياسية 2016'!$A$2:$I$73,3,0) -> 131.9 | J169: =VLOOKUP($C$5,'الارقام القياسية 2016'!$A$2:$I$73,3,0) -> 137.6 | K169: =VLOOKUP($G$168,نسب!$A$4:$T$100,5,0) -> 0.25 | L169: =VLOOKUP($G$38,نسب!$A$4:$C$100,3,0) -> 120 | M169: =VLOOKUP($G$38,نسب!$A$4:$C$100,2,0) -> 5 | N169: 334 | O169: 274 | P169: 25159.70803
H170: حديد | I170: =VLOOKUP($B$5,'الارقام القياسية 2016'!$A$2:$I$73,4,0) -> 263.7 | J170: =VLOOKUP($C$5,'الارقام القياسية 2016'!$A$2:$I$73,4,0) -> 270.2 | K170: =VLOOKUP($G$168,نسب!$A$4:$T$100,6,0) -> 0 | L170: =VLOOKUP($G$38,نسب!$A$4:$C$100,3,0) -> 120 | M170: =VLOOKUP($G$38,نسب!$A$4:$C$100,2,0) -> 5 | N170: 334 | O170: 274 | P170: 0
H171: اسفلت | I171: =VLOOKUP($B$5,'الارقام القياسية 2016'!$A$2:$I$73,5,0) -> 311 | J171: =VLOOKUP($C$5,'الارقام القياسية 2016'!$A$2:$I$73,5,0) -> 311 | K171: =VLOOKUP($G$168,نسب!$A$4:$T$100,7,0) -> 0 | L171: =VLOOKUP($G$38,نسب!$A$4:$C$100,3,0) -> 120 | M171: =VLOOKUP($G$38,نسب!$A$4:$C$100,2,0) -> 5 | N171: 334 | O171: 274 | P171: 0
H172: قطاعات معدنية | I172: =VLOOKUP($B$5,'الارقام القياسية 2016'!$A$2:$I$73,6,0) -> 250.6 | J172: =VLOOKUP($C$5,'الارقام القياسية 2016'!$A$2:$I$73,6,0) -> 233.5 | K172: =VLOOKUP($G$168,نسب!$A$4:$T$100,8,0) -> 0 | L172: =VLOOKUP($G$38,نسب!$A$4:$C$100,3,0) -> 120 | M172: =VLOOKUP($G$38,نسب!$A$4:$C$100,2,0) -> 5 | N172: 334 | O172: 274 | P172: 0
H173: غلاف معدني | I173: =VLOOKUP($B$5,'الارقام القياسية 2016'!$A$2:$I$73,7,0) -> 278.2 | J173: =VLOOKUP($C$5,'الارقام القياسية 2016'!$A$2:$I$73,7,0) -> 238.5 | K173: =VLOOKUP($G$168,نسب!$A$4:$T$100,9,0) -> 0 | L173: =VLOOKUP($G$38,نسب!$A$4:$C$100,3,0) -> 120 | M173: =VLOOKUP($G$38,نسب!$A$4:$C$100,2,0) -> 5 | N173: 334 | O173: 274 | P173: 0
H174: زوايا وكمرات | I174: =VLOOKUP($B$5,'الارقام القياسية 2016'!$A$2:$I$73,8,0) -> 271.6 | J174: =VLOOKUP($C$5,'الارقام القياسية 2016'!$A$2:$I$73,8,0) -> 276.9 | K174: =VLOOKUP($G$168,نسب!$A$4:$T$100,10,0) -> 0 | L174: =VLOOKUP($G$38,نسب!$A$4:$C$100,3,0) -> 120 | M174: =VLOOKUP($G$38,نسب!$A$4:$C$100,2,0) -> 5 | N174: 334 | O174: 274 | P174: 0
H175: مواسير صلب | I175: =VLOOKUP($B$5,'الارقام القياسية 2016'!$A$2:$I$73,9,0) -> 0 | J175: =VLOOKUP($C$5,'الارقام القياسية 2016'!$A$2:$I$73,9,0) -> 0 | K175: =VLOOKUP($G$168,نسب!$A$4:$T$100,11,0) -> 0 | L175: =VLOOKUP($G$38,نسب!$A$4:$C$100,3,0) -> 120 | M175: =VLOOKUP($G$38,نسب!$A$4:$C$100,2,0) -> 5 | N175: 334 | O175: 274
G177: رقم البند | H177: البند | I177: سعر فتح | J177: سعر مستخلص | K177: نسبة التأثير | L177: كمية | M177: سعر | N177: عدد الأيام | O177: الأيام الكلية | P177: الإجمالي
G178: 15 | H178: سولار | I178: =VLOOKUP($B$5,'الارقام القياسية 2016'!$A$2:$I$73,2,0) -> 266.2 | J178: =VLOOKUP($C$5,'الارقام القياسية 2016'!$A$2:$I$73,2,0) -> 319.6 | K178: =VLOOKUP($G$178,نسب!$A$4:$T$100,4,0) -> 0.1 | L178: =VLOOKUP($G$38,نسب!$A$4:$C$100,3,0) -> 120 | M178: =VLOOKUP($G$38,نسب!$A$4:$C$100,2,0) -> 5 | N178: =$E$4 -> 334 | O178: =$D$5-$C$5 -> 274 | P178: =IFERROR((I178*J178)/I178*K178*L178*M178*N178/O178,"") -> 23375.12409
H179: اسمنت بورتلاند | I179: =VLOOKUP($B$5,'الارقام القياسية 2016'!$A$2:$I$73,3,0) -> 131.9 | J179: =VLOOKUP($C$5,'الارقام القياسية 2016'!$A$2:$I$73,3,0) -> 137.6 | K179: =VLOOKUP($G$178,نسب!$A$4:$T$100,5,0) -> 0.25 | L179: =VLOOKUP($G$38,نسب!$A$4:$C$100,3,0) -> 120 | M179: =VLOOKUP($G$38,نسب!$A$4:$C$100,2,0) -> 5 | N179: 334 | O179: 274 | P179: 25159.70803
H180: حديد | I180: =VLOOKUP($B$5,'الارقام القياسية 2016'!$A$2:$I$73,4,0) -> 263.7 | J180: =VLOOKUP($C$5,'الارقام القياسية 2016'!$A$2:$I$73,4,0) -> 270.2 | K180: =VLOOKUP($G$178,نسب!$A$4:$T$100,6,0) -> 0 | L180: =VLOOKUP($G$38,نسب!$A$4:$C$100,3,0) -> 120 | M180: =VLOOKUP($G$38,نسب!$A$4:$C$100,2,0) -> 5 | N180: 334 | O180: 274 | P180: 0
H181: اسفلت | I181: =VLOOKUP($B$5,'الارقام القياسية 2016'!$A$2:$I$73,5,0) -> 311 | J181: =VLOOKUP($C$5,'الارقام القياسية 2016'!$A$2:$I$73,5,0) -> 311 | K181: =VLOOKUP($G$178,نسب!$A$4:$T$100,7,0) -> 0 | L181: =VLOOKUP($G$38,نسب!$A$4:$C$100,3,0) -> 120 | M181: =VLOOKUP($G$38,نسب!$A$4:$C$100,2,0) -> 5 | N181: 334 | O181: 274 | P181: 0
H182: قطاعات معدنية | I182: =VLOOKUP($B$5,'الارقام القياسية 2016'!$A$2:$I$73,6,0) -> 250.6 | J182: =VLOOKUP($C$5,'الارقام القياسية 2016'!$A$2:$I$73,6,0) -> 233.5 | K182: =VLOOKUP($G$178,نسب!$A$4:$T$100,8,0) -> 0 | L182: =VLOOKUP($G$38,نسب!$A$4:$C$100,3,0) -> 120 | M182: =VLOOKUP($G$38,نسب!$A$4:$C$100,2,0) -> 5 | N182: 334 | O182: 274 | P182: 0
H183: غلاف معدني | I183: =VLOOKUP($B$5,'الارقام القياسية 2016'!$A$2:$I$73,7,0) -> 278.2 | J183: =VLOOKUP($C$5,'الارقام القياسية 2016'!$A$2:$I$73,7,0) -> 238.5 | K183: =VLOOKUP($G$178,نسب!$A$4:$T$100,9,0) -> 0 | L183: =VLOOKUP($G$38,نسب!$A$4:$C$100,3,0) -> 120 | M183: =VLOOKUP($G$38,نسب!$A$4:$C$100,2,0) -> 5 | N183: 334 | O183: 274 | P183: 0
H184: زوايا وكمرات | I184: =VLOOKUP($B$5,'الارقام القياسية 2016'!$A$2:$I$73,8,0) -> 271.6 | J184: =VLOOKUP($C$5,'الارقام القياسية 2016'!$A$2:$I$73,8,0) -> 276.9 | K184: =VLOOKUP($G$178,نسب!$A$4:$T$100,10,0) -> 0 | L184: =VLOOKUP($G$38,نسب!$A$4:$C$100,3,0) -> 120 | M184: =VLOOKUP($G$38,نسب!$A$4:$C$100,2,0) -> 5 | N184: 334 | O184: 274 | P184: 0
H185: مواسير صلب | I185: =VLOOKUP($B$5,'الارقام القياسية 2016'!$A$2:$I$73,9,0) -> 0 | J185: =VLOOKUP($C$5,'الارقام القياسية 2016'!$A$2:$I$73,9,0) -> 0 | K185: =VLOOKUP($G$178,نسب!$A$4:$T$100,11,0) -> 0 | L185: =VLOOKUP($G$38,نسب!$A$4:$C$100,3,0) -> 120 | M185: =VLOOKUP($G$38,نسب!$A$4:$C$100,2,0) -> 5 | N185: 334 | O185: 274
G187: رقم البند | H187: البند | I187: سعر فتح | J187: سعر مستخلص | K187: نسبة التأثير | L187: كمية | M187: سعر | N187: عدد الأيام | O187: الأيام الكلية | P187: الإجمالي
G188: 16 | H188: سولار | I188: =VLOOKUP($B$5,'الارقام القياسية 2016'!$A$2:$I$73,2,0) -> 266.2 | J188: =VLOOKUP($C$5,'الارقام القياسية 2016'!$A$2:$I$73,2,0) -> 319.6 | K188: =VLOOKUP($G$188,نسب!$A$4:$T$100,4,0) -> 0.1 | L188: =VLOOKUP($G$38,نسب!$A$4:$C$100,3,0) -> 120 | M188: =VLOOKUP($G$38,نسب!$A$4:$C$100,2,0) -> 5 | N188: =$E$4 -> 334 | O188: =$D$5-$C$5 -> 274 | P188: =IFERROR((I188*J188)/I188*K188*L188*M188*N188/O188,"") -> 23375.12409
H189: اسمنت بورتلاند | I189: =VLOOKUP($B$5,'الارقام القياسية 2016'!$A$2:$I$73,3,0) -> 131.9 | J189: =VLOOKUP($C$5,'الارقام القياسية 2016'!$A$2:$I$73,3,0) -> 137.6 | K189: =VLOOKUP($G$188,نسب!$A$4:$T$100,5,0) -> 0.2 | L189: =VLOOKUP($G$38,نسب!$A$4:$C$100,3,0) -> 120 | M189: =VLOOKUP($G$38,نسب!$A$4:$C$100,2,0) -> 5 | N189: 334 | O189: 274 | P189: 20127.76642
H190: حديد | I190: =VLOOKUP($B$5,'الارقام القياسية 2016'!$A$2:$I$73,4,0) -> 263.7 | J190: =VLOOKUP($C$5,'الارقام القياسية 2016'!$A$2:$I$73,4,0) -> 270.2 | K190: =VLOOKUP($G$188,نسب!$A$4:$T$100,6,0) -> 0.35 | L190: =VLOOKUP($G$38,نسب!$A$4:$C$100,3,0) -> 120 | M190: =VLOOKUP($G$38,نسب!$A$4:$C$100,2,0) -> 5 | N190: 334 | O190: 274 | P190: 69167.25547
H191: اسفلت | I191: =VLOOKUP($B$5,'الارقام القياسية 2016'!$A$2:$I$73,5,0) -> 311 | J191: =VLOOKUP($C$5,'الارقام القياسية 2016'!$A$2:$I$73,5,0) -> 311 | K191: =VLOOKUP($G$188,نسب!$A$4:$T$100,7,0) -> 0 | L191: =VLOOKUP($G$38,نسب!$A$4:$C$100,3,0) -> 120 | M191: =VLOOKUP($G$38,نسب!$A$4:$C$100,2,0) -> 5 | N191: 334 | O191: 274 | P191: 0
H192: قطاعات معدنية | I192: =VLOOKUP($B$5,'الارقام القياسية 2016'!$A$2:$I$73,6,0) -> 250.6 | J192: =VLOOKUP($C$5,'الارقام القياسية 2016'!$A$2:$I$73,6,0) -> 233.5 | K192: =VLOOKUP($G$188,نسب!$A$4:$T$100,8,0) -> 0 | L192: =VLOOKUP($G$38,نسب!$A$4:$C$100,3,0) -> 120 | M192: =VLOOKUP($G$38,نسب!$A$4:$C$100,2,0) -> 5 | N192: 334 | O192: 274 | P192: 0
H193: غلاف معدني | I193: =VLOOKUP($B$5,'الارقام القياسية 2016'!$A$2:$I$73,7,0) -> 278.2 | J193: =VLOOKUP($C$5,'الارقام القياسية 2016'!$A$2:$I$73,7,0) -> 238.5 | K193: =VLOOKUP($G$188,نسب!$A$4:$T$100,9,0) -> 0 | L193: =VLOOKUP($G$38,نسب!$A$4:$C$100,3,0) -> 120 | M193: =VLOOKUP($G$38,نسب!$A$4:$C$100,2,0) -> 5 | N193: 334 | O193: 274 | P193: 0
H194: زوايا وكمرات | I194: =VLOOKUP($B$5,'الارقام القياسية 2016'!$A$2:$I$73,8,0) -> 271.6 | J194: =VLOOKUP($C$5,'الارقام القياسية 2016'!$A$2:$I$73,8,0) -> 276.9 | K194: =VLOOKUP($G$188,نسب!$A$4:$T$100,10,0) -> 0 | L194: =VLOOKUP($G$38,نسب!$A$4:$C$100,3,0) -> 120 | M194: =VLOOKUP($G$38,نسب!$A$4:$C$100,2,0) -> 5 | N194: 334 | O194: 274 | P194: 0
H195: مواسير صلب | I195: =VLOOKUP($B$5,'الارقام القياسية 2016'!$A$2:$I$73,9,0) -> 0 | J195: =VLOOKUP($C$5,'الارقام القياسية 2016'!$A$2:$I$73,9,0) -> 0 | K195: =VLOOKUP($G$188,نسب!$A$4:$T$100,11,0) -> 0 | L195: =VLOOKUP($G$38,نسب!$A$4:$C$100,3,0) -> 120 | M195: =VLOOKUP($G$38,نسب!$A$4:$C$100,2,0) -> 5 | N195: 334 | O195: 274
G197: رقم البند | H197: البند | I197: سعر فتح | J197: سعر مستخلص | K197: نسبة التأثير | L197: كمية | M197: سعر | N197: عدد الأيام | O197: الأيام الكلية | P197: الإجمالي
G198: 17 | H198: سولار | I198: =VLOOKUP($B$5,'الارقام القياسية 2016'!$A$2:$I$73,2,0) -> 266.2 | J198: =VLOOKUP($C$5,'الارقام القياسية 2016'!$A$2:$I$73,2,0) -> 319.6 | K198: =VLOOKUP($G$198,نسب!$A$4:$T$100,4,0) -> 0.15 | L198: =VLOOKUP($G$38,نسب!$A$4:$C$100,3,0) -> 120 | M198: =VLOOKUP($G$38,نسب!$A$4:$C$100,2,0) -> 5 | N198: =$E$4 -> 334 | O198: =$D$5-$C$5 -> 274 | P198: =IFERROR((I198*J198)/I198*K198*L198*M198*N198/O198,"") -> 35062.68613
H199: اسمنت بورتلاند | I199: =VLOOKUP($B$5,'الارقام القياسية 2016'!$A$2:$I$73,3,0) -> 131.9 | J199: =VLOOKUP($C$5,'الارقام القياسية 2016'!$A$2:$I$73,3,0) -> 137.6 | K199: =VLOOKUP($G$198,نسب!$A$4:$T$100,5,0) -> 0.3 | L199: =VLOOKUP($G$38,نسب!$A$4:$C$100,3,0) -> 120 | M199: =VLOOKUP($G$38,نسب!$A$4:$C$100,2,0) -> 5 | N199: 334 | O199: 274 | P199: 30191.64964
H200: حديد | I200: =VLOOKUP($B$5,'الارقام القياسية 2016'!$A$2:$I$73,4,0) -> 263.7 | J200: =VLOOKUP($C$5,'الارقام القياسية 2016'!$A$2:$I$73,4,0) -> 270.2 | K200: =VLOOKUP($G$198,نسب!$A$4:$T$100,6,0) -> 0.1 | L200: =VLOOKUP($G$38,نسب!$A$4:$C$100,3,0) -> 120 | M200: =VLOOKUP($G$38,نسب!$A$4:$C$100,2,0) -> 5 | N200: 334 | O200: 274 | P200: 19762.07299
H201: اسفلت | I201: =VLOOKUP($B$5,'الارقام القياسية 2016'!$A$2:$I$73,5,0) -> 311 | J201: =VLOOKUP($C$5,'الارقام القياسية 2016'!$A$2:$I$73,5,0) -> 311 | K201: =VLOOKUP($G$198,نسب!$A$4:$T$100,7,0) -> 0 | L201: =VLOOKUP($G$38,نسب!$A$4:$C$100,3,0) -> 120 | M201: =VLOOKUP($G$38,نسب!$A$4:$C$100,2,0) -> 5 | N201: 334 | O201: 274 | P201: 0
H202: قطاعات معدنية | I202: =VLOOKUP($B$5,'الارقام القياسية 2016'!$A$2:$I$73,6,0) -> 250.6 | J202: =VLOOKUP($C$5,'الارقام القياسية 2016'!$A$2:$I$73,6,0) -> 233.5 | K202: =VLOOKUP($G$198,نسب!$A$4:$T$100,8,0) -> 0 | L202: =VLOOKUP($G$38,نسب!$A$4:$C$100,3,0) -> 120 | M202: =VLOOKUP($G$38,نسب!$A$4:$C$100,2,0) -> 5 | N202: 334 | O202: 274 | P202: 0
H203: غلاف معدني | I203: =VLOOKUP($B$5,'الارقام القياسية 2016'!$A$2:$I$73,7,0) -> 278.2 | J203: =VLOOKUP($C$5,'الارقام القياسية 2016'!$A$2:$I$73,7,0) -> 238.5 | K203: =VLOOKUP($G$198,نسب!$A$4:$T$100,9,0) -> 0 | L203: =VLOOKUP($G$38,نسب!$A$4:$C$100,3,0) -> 120 | M203: =VLOOKUP($G$38,نسب!$A$4:$C$100,2,0) -> 5 | N203: 334 | O203: 274 | P203: 0
H204: زوايا وكمرات | I204: =VLOOKUP($B$5,'الارقام القياسية 2016'!$A$2:$I$73,8,0) -> 271.6 | J204: =VLOOKUP($C$5,'الارقام القياسية 2016'!$A$2:$I$73,8,0) -> 276.9 | K204: =VLOOKUP($G$198,نسب!$A$4:$T$100,10,0) -> 0 | L204: =VLOOKUP($G$38,نسب!$A$4:$C$100,3,0) -> 120 | M204: =VLOOKUP($G$38,نسب!$A$4:$C$100,2,0) -> 5 | N204: 334 | O204: 274 | P204: 0
H205: مواسير صلب | I205: =VLOOKUP($B$5,'الارقام القياسية 2016'!$A$2:$I$73,9,0) -> 0 | J205: =VLOOKUP($C$5,'الارقام القياسية 2016'!$A$2:$I$73,9,0) -> 0 | K205: =VLOOKUP($G$198,نسب!$A$4:$T$100,11,0) -> 0 | L205: =VLOOKUP($G$38,نسب!$A$4:$C$100,3,0) -> 120 | M205: =VLOOKUP($G$38,نسب!$A$4:$C$100,2,0) -> 5 | N205: 334 | O205: 274
G207: رقم البند | H207: البند | I207: سعر فتح | J207: سعر مستخلص | K207: نسبة التأثير | L207: كمية | M207: سعر | N207: عدد الأيام | O207: الأيام الكلية | P207: الإجمالي
G208: 18 | H208: سولار | I208: =VLOOKUP($B$5,'الارقام القياسية 2016'!$A$2:$I$73,2,0) -> 266.2 | J208: =VLOOKUP($C$5,'الارقام القياسية 2016'!$A$2:$I$73,2,0) -> 319.6 | K208: =VLOOKUP($G$208,نسب!$A$4:$T$100,4,0) -> 0.15 | L208: =VLOOKUP($G$38,نسب!$A$4:$C$100,3,0) -> 120 | M208: =VLOOKUP($G$38,نسب!$A$4:$C$100,2,0) -> 5 | N208: =$E$4 -> 334 | O208: =$D$5-$C$5 -> 274 | P208: =IFERROR((I208*J208)/I208*K208*L208*M208*N208/O208,"") -> 35062.68613
H209: اسمنت بورتلاند | I209: =VLOOKUP($B$5,'الارقام القياسية 2016'!$A$2:$I$73,3,0) -> 131.9 | J209: =VLOOKUP($C$5,'الارقام القياسية 2016'!$A$2:$I$73,3,0) -> 137.6 | K209: =VLOOKUP($G$208,نسب!$A$4:$T$100,5,0) -> 0.3 | L209: =VLOOKUP($G$38,نسب!$A$4:$C$100,3,0) -> 120 | M209: =VLOOKUP($G$38,نسب!$A$4:$C$100,2,0) -> 5 | N209: 334 | O209: 274 | P209: 30191.64964
H210: حديد | I210: =VLOOKUP($B$5,'الارقام القياسية 2016'!$A$2:$I$73,4,0) -> 263.7 | J210: =VLOOKUP($C$5,'الارقام القياسية 2016'!$A$2:$I$73,4,0) -> 270.2 | K210: =VLOOKUP($G$208,نسب!$A$4:$T$100,6,0) -> 0.1 | L210: =VLOOKUP($G$38,نسب!$A$4:$C$100,3,0) -> 120 | M210: =VLOOKUP($G$38,نسب!$A$4:$C$100,2,0) -> 5 | N210: 334 | O210: 274 | P210: 19762.07299
H211: اسفلت | I211: =VLOOKUP($B$5,'الارقام القياسية 2016'!$A$2:$I$73,5,0) -> 311 | J211: =VLOOKUP($C$5,'الارقام القياسية 2016'!$A$2:$I$73,5,0) -> 311 | K211: =VLOOKUP($G$208,نسب!$A$4:$T$100,7,0) -> 0 | L211: =VLOOKUP($G$38,نسب!$A$4:$C$100,3,0) -> 120 | M211: =VLOOKUP($G$38,نسب!$A$4:$C$100,2,0) -> 5 | N211: 334 | O211: 274 | P211: 0
H212: قطاعات معدنية | I212: =VLOOKUP($B$5,'الارقام القياسية 2016'!$A$2:$I$73,6,0) -> 250.6 | J212: =VLOOKUP($C$5,'الارقام القياسية 2016'!$A$2:$I$73,6,0) -> 233.5 | K212: =VLOOKUP($G$208,نسب!$A$4:$T$100,8,0) -> 0 | L212: =VLOOKUP($G$38,نسب!$A$4:$C$100,3,0) -> 120 | M212: =VLOOKUP($G$38,نسب!$A$4:$C$100,2,0) -> 5 | N212: 334 | O212: 274 | P212: 0
H213: غلاف معدني | I213: =VLOOKUP($B$5,'الارقام القياسية 2016'!$A$2:$I$73,7,0) -> 278.2 | J213: =VLOOKUP($C$5,'الارقام القياسية 2016'!$A$2:$I$73,7,0) -> 238.5 | K213: =VLOOKUP($G$208,نسب!$A$4:$T$100,9,0) -> 0 | L213: =VLOOKUP($G$38,نسب!$A$4:$C$100,3,0) -> 120 | M213: =VLOOKUP($G$38,نسب!$A$4:$C$100,2,0) -> 5 | N213: 334 | O213: 274 | P213: 0
H214: زوايا وكمرات | I214: =VLOOKUP($B$5,'الارقام القياسية 2016'!$A$2:$I$73,8,0) -> 271.6 | J214: =VLOOKUP($C$5,'الارقام القياسية 2016'!$A$2:$I$73,8,0) -> 276.9 | K214: =VLOOKUP($G$208,نسب!$A$4:$T$100,10,0) -> 0 | L214: =VLOOKUP($G$38,نسب!$A$4:$C$100,3,0) -> 120 | M214: =VLOOKUP($G$38,نسب!$A$4:$C$100,2,0) -> 5 | N214: 334 | O214: 274 | P214: 0
H215: مواسير صلب | I215: =VLOOKUP($B$5,'الارقام القياسية 2016'!$A$2:$I$73,9,0) -> 0 | J215: =VLOOKUP($C$5,'الارقام القياسية 2016'!$A$2:$I$73,9,0) -> 0 | K215: =VLOOKUP($G$208,نسب!$A$4:$T$100,11,0) -> 0 | L215: =VLOOKUP($G$38,نسب!$A$4:$C$100,3,0) -> 120 | M215: =VLOOKUP($G$38,نسب!$A$4:$C$100,2,0) -> 5 | N215: 334 | O215: 274
G217: رقم البند | H217: البند | I217: سعر فتح | J217: سعر مستخلص | K217: نسبة التأثير | L217: كمية | M217: سعر | N217: عدد الأيام | O217: الأيام الكلية | P217: الإجمالي
G218: 19 | H218: سولار | I218: =VLOOKUP($B$5,'الارقام القياسية 2016'!$A$2:$I$73,2,0) -> 266.2 | J218: =VLOOKUP($C$5,'الارقام القياسية 2016'!$A$2:$I$73,2,0) -> 319.6 | K218: =VLOOKUP($G$218,نسب!$A$4:$T$100,4,0) -> 0.1 | L218: =VLOOKUP($G$38,نسب!$A$4:$C$100,3,0) -> 120 | M218: =VLOOKUP($G$38,نسب!$A$4:$C$100,2,0) -> 5 | N218: =$E$4 -> 334 | O218: =$D$5-$C$5 -> 274 | P218: =IFERROR((I218*J218)/I218*K218*L218*M218*N218/O218,"") -> 23375.12409
H219: اسمنت بورتلاند | I219: =VLOOKUP($B$5,'الارقام القياسية 2016'!$A$2:$I$73,3,0) -> 131.9 | J219: =VLOOKUP($C$5,'الارقام القياسية 2016'!$A$2:$I$73,3,0) -> 137.6 | K219: =VLOOKUP($G$218,نسب!$A$4:$T$100,5,0) -> 0.35 | L219: =VLOOKUP($G$38,نسب!$A$4:$C$100,3,0) -> 120 | M219: =VLOOKUP($G$38,نسب!$A$4:$C$100,2,0) -> 5 | N219: 334 | O219: 274 | P219: 35223.59124
H220: حديد | I220: =VLOOKUP($B$5,'الارقام القياسية 2016'!$A$2:$I$73,4,0) -> 263.7 | J220: =VLOOKUP($C$5,'الارقام القياسية 2016'!$A$2:$I$73,4,0) -> 270.2 | K220: =VLOOKUP($G$218,نسب!$A$4:$T$100,6,0) -> 0 | L220: =VLOOKUP($G$38,نسب!$A$4:$C$100,3,0) -> 120 | M220: =VLOOKUP($G$38,نسب!$A$4:$C$100,2,0) -> 5 | N220: 334 | O220: 274 | P220: 0
H221: اسفلت | I221: =VLOOKUP($B$5,'الارقام القياسية 2016'!$A$2:$I$73,5,0) -> 311 | J221: =VLOOKUP($C$5,'الارقام القياسية 2016'!$A$2:$I$73,5,0) -> 311 | K221: =VLOOKUP($G$218,نسب!$A$4:$T$100,7,0) -> 0 | L221: =VLOOKUP($G$38,نسب!$A$4:$C$100,3,0) -> 120 | M221: =VLOOKUP($G$38,نسب!$A$4:$C$100,2,0) -> 5 | N221: 334 | O221: 274 | P221: 0
H222: قطاعات معدنية | I222: =VLOOKUP($B$5,'الارقام القياسية 2016'!$A$2:$I$73,6,0) -> 250.6 | J222: =VLOOKUP($C$5,'الارقام القياسية 2016'!$A$2:$I$73,6,0) -> 233.5 | K222: =VLOOKUP($G$218,نسب!$A$4:$T$100,8,0) -> 0 | L222: =VLOOKUP($G$38,نسب!$A$4:$C$100,3,0) -> 120 | M222: =VLOOKUP($G$38,نسب!$A$4:$C$100,2,0) -> 5 | N222: 334 | O222: 274 | P222: 0
H223: غلاف معدني | I223: =VLOOKUP($B$5,'الارقام القياسية 2016'!$A$2:$I$73,7,0) -> 278.2 | J223: =VLOOKUP($C$5,'الارقام القياسية 2016'!$A$2:$I$73,7,0) -> 238.5 | K223: =VLOOKUP($G$218,نسب!$A$4:$T$100,9,0) -> 0 | L223: =VLOOKUP($G$38,نسب!$A$4:$C$100,3,0) -> 120 | M223: =VLOOKUP($G$38,نسب!$A$4:$C$100,2,0) -> 5 | N223: 334 | O223: 274 | P223: 0
H224: زوايا وكمرات | I224: =VLOOKUP($B$5,'الارقام القياسية 2016'!$A$2:$I$73,8,0) -> 271.6 | J224: =VLOOKUP($C$5,'الارقام القياسية 2016'!$A$2:$I$73,8,0) -> 276.9 | K224: =VLOOKUP($G$218,نسب!$A$4:$T$100,10,0) -> 0 | L224: =VLOOKUP($G$38,نسب!$A$4:$C$100,3,0) -> 120 | M224: =VLOOKUP($G$38,نسب!$A$4:$C$100,2,0) -> 5 | N224: 334 | O224: 274 | P224: 0
H225: مواسير صلب | I225: =VLOOKUP($B$5,'الارقام القياسية 2016'!$A$2:$I$73,9,0) -> 0 | J225: =VLOOKUP($C$5,'الارقام القياسية 2016'!$A$2:$I$73,9,0) -> 0 | K225: =VLOOKUP($G$218,نسب!$A$4:$T$100,11,0) -> 0 | L225: =VLOOKUP($G$38,نسب!$A$4:$C$100,3,0) -> 120 | M225: =VLOOKUP($G$38,نسب!$A$4:$C$100,2,0) -> 5 | N225: 334 | O225: 274
G227: رقم البند | H227: البند | I227: سعر فتح | J227: سعر مستخلص | K227: نسبة التأثير | L227: كمية | M227: سعر | N227: عدد الأيام | O227: الأيام الكلية | P227: الإجمالي
G228: 20 | H228: سولار | I228: =VLOOKUP($B$5,'الارقام القياسية 2016'!$A$2:$I$73,2,0) -> 266.2 | J228: =VLOOKUP($C$5,'الارقام القياسية 2016'!$A$2:$I$73,2,0) -> 319.6 | K228: =VLOOKUP($G$228,نسب!$A$4:$T$100,4,0) -> 0 | L228: =VLOOKUP($G$38,نسب!$A$4:$C$100,3,0) -> 120 | M228: =VLOOKUP($G$38,نسب!$A$4:$C$100,2,0) -> 5 | N228: =$E$4 -> 334 | O228: =$D$5-$C$5 -> 274 | P228: =IFERROR((I228*J228)/I228*K228*L228*M228*N228/O228,"") -> 0
H229: اسمنت بورتلاند | I229: =VLOOKUP($B$5,'الارقام القياسية 2016'!$A$2:$I$73,3,0) -> 131.9 | J229: =VLOOKUP($C$5,'الارقام القياسية 2016'!$A$2:$I$73,3,0) -> 137.6 | K229: =VLOOKUP($G$228,نسب!$A$4:$T$100,5,0) -> 0 | L229: =VLOOKUP($G$38,نسب!$A$4:$C$100,3,0) -> 120 | M229: =VLOOKUP($G$38,نسب!$A$4:$C$100,2,0) -> 5 | N229: 334 | O229: 274 | P229: 0
H230: حديد | I230: =VLOOKUP($B$5,'الارقام القياسية 2016'!$A$2:$I$73,4,0) -> 263.7 | J230: =VLOOKUP($C$5,'الارقام القياسية 2016'!$A$2:$I$73,4,0) -> 270.2 | K230: =VLOOKUP($G$228,نسب!$A$4:$T$100,6,0) -> 0 | L230: =VLOOKUP($G$38,نسب!$A$4:$C$100,3,0) -> 120 | M230: =VLOOKUP($G$38,نسب!$A$4:$C$100,2,0) -> 5 | N230: 334 | O230: 274 | P230: 0
H231: اسفلت | I231: =VLOOKUP($B$5,'الارقام القياسية 2016'!$A$2:$I$73,5,0) -> 311 | J231: =VLOOKUP($C$5,'الارقام القياسية 2016'!$A$2:$I$73,5,0) -> 311 | K231: =VLOOKUP($G$228,نسب!$A$4:$T$100,7,0) -> 0 | L231: =VLOOKUP($G$38,نسب!$A$4:$C$100,3,0) -> 120 | M231: =VLOOKUP($G$38,نسب!$A$4:$C$100,2,0) -> 5 | N231: 334 | O231: 274 | P231: 0
H232: قطاعات معدنية | I232: =VLOOKUP($B$5,'الارقام القياسية 2016'!$A$2:$I$73,6,0) -> 250.6 | J232: =VLOOKUP($C$5,'الارقام القياسية 2016'!$A$2:$I$73,6,0) -> 233.5 | K232: =VLOOKUP($G$228,نسب!$A$4:$T$100,8,0) -> 0 | L232: =VLOOKUP($G$38,نسب!$A$4:$C$100,3,0) -> 120 | M232: =VLOOKUP($G$38,نسب!$A$4:$C$100,2,0) -> 5 | N232: 334 | O232: 274 | P232: 0
H233: غلاف معدني | I233: =VLOOKUP($B$5,'الارقام القياسية 2016'!$A$2:$I$73,7,0) -> 278.2 | J233: =VLOOKUP($C$5,'الارقام القياسية 2016'!$A$2:$I$73,7,0) -> 238.5 | K233: =VLOOKUP($G$228,نسب!$A$4:$T$100,9,0) -> 0 | L233: =VLOOKUP($G$38,نسب!$A$4:$C$100,3,0) -> 120 | M233: =VLOOKUP($G$38,نسب!$A$4:$C$100,2,0) -> 5 | N233: 334 | O233: 274 | P233: 0
H234: زوايا وكمرات | I234: =VLOOKUP($B$5,'الارقام القياسية 2016'!$A$2:$I$73,8,0) -> 271.6 | J234: =VLOOKUP($C$5,'الارقام القياسية 2016'!$A$2:$I$73,8,0) -> 276.9 | K234: =VLOOKUP($G$228,نسب!$A$4:$T$100,10,0) -> 0 | L234: =VLOOKUP($G$38,نسب!$A$4:$C$100,3,0) -> 120 | M234: =VLOOKUP($G$38,نسب!$A$4:$C$100,2,0) -> 5 | N234: 334 | O234: 274 | P234: 0
H235: مواسير صلب | I235: =VLOOKUP($B$5,'الارقام القياسية 2016'!$A$2:$I$73,9,0) -> 0 | J235: =VLOOKUP($C$5,'الارقام القياسية 2016'!$A$2:$I$73,9,0) -> 0 | K235: =VLOOKUP($G$228,نسب!$A$4:$T$100,11,0) -> 0 | L235: =VLOOKUP($G$38,نسب!$A$4:$C$100,3,0) -> 120 | M235: =VLOOKUP($G$38,نسب!$A$4:$C$100,2,0) -> 5 | N235: 334 | O235: 274
G237: رقم البند | H237: البند | I237: سعر فتح | J237: سعر مستخلص | K237: نسبة التأثير | L237: كمية | M237: سعر | N237: عدد الأيام | O237: الأيام الكلية | P237: الإجمالي
G238: 21 | H238: سولار | I238: =VLOOKUP($B$5,'الارقام القياسية 2016'!$A$2:$I$73,2,0) -> 266.2 | J238: =VLOOKUP($C$5,'الارقام القياسية 2016'!$A$2:$I$73,2,0) -> 319.6 | K238: =VLOOKUP($G$238,نسب!$A$4:$T$100,4,0) -> 0 | L238: =VLOOKUP($G$38,نسب!$A$4:$C$100,3,0) -> 120 | M238: =VLOOKUP($G$38,نسب!$A$4:$C$100,2,0) -> 5 | N238: =$E$4 -> 334 | O238: =$D$5-$C$5 -> 274 | P238: =IFERROR((I238*J238)/I238*K238*L238*M238*N238/O238,"") -> 0
H239: اسمنت بورتلاند | I239: =VLOOKUP($B$5,'الارقام القياسية 2016'!$A$2:$I$73,3,0) -> 131.9 | J239: =VLOOKUP($C$5,'الارقام القياسية 2016'!$A$2:$I$73,3,0) -> 137.6 | K239: =VLOOKUP($G$238,نسب!$A$4:$T$100,5,0) -> 0 | L239: =VLOOKUP($G$38,نسب!$A$4:$C$100,3,0) -> 120 | M239: =VLOOKUP($G$38,نسب!$A$4:$C$100,2,0) -> 5 | N239: 334 | O239: 274 | P239: 0
... 150 more rows

Sheet ورقة1
A1: p28
A2: P38
A3: p48
A4: p58
A5: p68
A6: p78
A7: p88
A8: p98
A9: p108
A10: p118
A11: p128
A12: p138
A13: p148
A14: p158
A15: p168
A16: p178
A17: p188
A18: p198
A19: p208
A20: p218
A21: p228
A22: p238
A23: p248
A24: p258
A25: p268
A26: p278
A27: p288
A28: p298
A29: p308
A30: p318
A31: p328
A32: p338
A33: p348
A34: p358
A35: p368
A36: p378
A37: p388
A38: z28
A39: z38
A40: z48
A41: z58
A42: z68
A43: z78
A44: z88
A45: z98
A46: z108
A47: z118
A48: z128
A49: z138
A50: z148
A51: z158
A52: z168
A53: z178
A54: z188
A55: z198
A56: z208
A57: z218
A58: z228
A59: z238
A60: z248
A61: z258
A62: z268
A63: z278
A64: z288
A65: z298
A66: z308
A67: z318
A68: z328
A69: z338
A70: z348
A71: z358
A72: z368
A73: z378
A74: z388
A75: ag28
A76: ag38
A77: ag48
A78: ag58
A79: ag68
A80: ag78
A81: ag88
A82: ag98
A83: ag108
A84: ag118
A85: ag128
A86: ag138
A87: ag148
A88: ag158
A89: ag168
A90: ag178
A91: ag188
A92: ag198
A93: ag208
A94: ag218
A95: ag228
A96: ag238
A97: ag248
A98: ag258
A99: ag268
A100: ag278
A101: ag288
A102: ag298
A103: ag308
A104: ag318
A105: ag328
A106: ag338
A107: ag348
A108: ag358
A109: ag368
A110: ag378
A111: ag388
A112: at28
A113: at38
A114: at48
A115: at58
A116: at68
A117: at78
A118: at88
A119: at98
A120: at108
A121: at118
A122: at128
A123: at138
A124: at148
A125: at158
A126: at168
A127: at178
A128: at188
A129: at198
A130: at208
A131: at218
A132: at228
A133: at238
A134: at248
A135: at258
A136: at268
A137: at278
A138: at288
A139: at298
A140: at308
A141: at318
A142: at328
A143: at338
A144: at348
A145: at358
A146: at368
A147: at378
A148: at388
A149: bd28
A150: bd38
A151: bd48
A152: bd58
A153: bd68
A154: bd78
A155: bd88
A156: bd98
A157: bd108
A158: bd118
A159: bd128
A160: bd138
A161: bd148
A162: bd158
A163: bd168
A164: bd178
A165: bd188
A166: bd198
A167: bd208
A168: bd218
A169: bd228
A170: bd238
A171: bd248
A172: bd258
A173: bd268
A174: bd278
A175: bd288
A176: bd298
A177: bd308
A178: bd318
A179: bd328
A180: bd338
A181: bd348
A182: bd358
A183: bd368
A184: bd378
A185: bd388
A186: BN28
A187: bn38
A188: BN48
A189: BN58
A190: BN68
A191: BN78
A192: BN88
A193: BN98
A194: BN108
A195: BN118
A196: BN128
A197: BN138
A198: BN148
A199: BN158
A200: BN168
... 22 more rows

Sheet الارقام القياسية 2016
A1: البند / الشهر | B1: سولار | C1: اسمنت بورتلاند | D1: حديد | E1: اسفلت | F1: قطاعات معدنية | G1: غلاف معدني | H1: زوايا وكمرات | I1: مواسير صلب ملحومة
A2: 2016-01-01
A3: 2016-02-01
A4: 2016-03-01
A5: 2016-04-01
A6: 2016-05-01
A7: 2016-06-01
A8: 2016-07-01
A9: 2016-08-01
A10: 2016-09-01
A11: 2016-10-01
A12: 2016-11-01
A13: 2016-12-01
A14: 2017-01-01
A15: 2017-02-01
A16: 2017-03-01
A17: 2017-04-01
A18: 2017-05-01
A19: 2017-06-01
A20: 2017-07-01
A21: 2017-08-01 | B21: 187.1 | C21: 123.2 | D21: 259.1 | E21: 231.5 | F21: 238.9 | G21: 260.5 | H21: 238.2
A22: 2017-09-01 | B22: 187.1 | C22: 125 | D22: 267.6 | E22: 231.5 | F22: 239 | G22: 263 | H22: 240.7
A23: 2017-10-01 | B23: 187.1 | C23: 117.5 | D23: 272.1 | E23: 284.9 | F23: 245.9 | G23: 267.3 | H23: 254.1
A24: 2017-11-01 | B24: 187.1 | C24: 138.5 | D24: 272.1 | E24: 284.9 | F24: 245.9 | G24: 267.3 | H24: 254.1
A25: 2017-12-01 | B25: 187.1 | C25: 144.1 | D25: 272.1 | E25: 284.9 | F25: 245.9 | G25: 267.3 | H25: 252.9
A26: 2018-01-01 | B26: 187.1 | C26: 144.1 | D26: 272.1 | E26: 284.9 | F26: 248.9 | G26: 267.3 | H26: 252.9
A27: 2018-02-01 | B27: 187.1 | C27: 144.1 | D27: 272.1 | E27: 284.9 | F27: 248.9 | G27: 267.3 | H27: 252.9
A28: 2018-03-01 | B28: 187.1 | C28: 175.4 | D28: 290.7 | E28: 284.9 | F28: 255.6 | G28: 275.1 | H28: 260.7
A29: 2018-04-01 | B29: 187.1 | C29: 144.6 | D29: 284.7 | E29: 311 | F29: 261.3 | G29: 284 | H29: 271.4
A30: 2018-05-01 | B30: 187.1 | C30: 137.9 | D30: 284.7 | E30: 311 | F30: 261.3 | G30: 284 | H30: 271.4
A31: 2018-06-01 | B31: 266.2 | C31: 142.5 | D31: 284.7 | E31: 311 | F31: 261.3 | G31: 284 | H31: 271.4
A32: 2018-07-01 | B32: 266.2 | C32: 143 | D32: 284.7 | E32: 311 | F32: 261.3 | G32: 284 | H32: 271.4
A33: 2018-08-01 | B33: 266.2 | C33: 132.1 | D33: 284.7 | E33: 311 | F33: 261.3 | G33: 284 | H33: 271.4
A34: 2018-09-01 | B34: 266.2 | C34: 132.1 | D34: 284.7 | E34: 311 | F34: 261.3 | G34: 284 | H34: 271.4
A35: 2018-10-01 | B35: 266.2 | C35: 134.7 | D35: 277.2 | E35: 311 | F35: 261.3 | G35: 284 | H35: 271.4
A36: 2018-11-01 | B36: 266.2 | C36: 134.7 | D36: 277.2 | E36: 311 | F36: 261.3 | G36: 284 | H36: 271.4
A37: 2018-12-01 | B37: 266.2 | C37: 131.9 | D37: 263.7 | E37: 311 | F37: 256.6 | G37: 284 | H37: 271.4
A38: 2019-01-01 | B38: 266.2 | C38: 131.9 | D38: 263.7 | E38: 311 | F38: 250.6 | G38: 278.2 | H38: 271.6
A39: 2019-02-01 | B39: 266.2 | C39: 131.9 | D39: 263.7 | E39: 311 | F39: 249.2 | G39: 274.5 | H39: 271.6
A40: 2019-03-01 | B40: 266.2 | C40: 131.9 | D40: 263.7 | E40: 311 | F40: 249.2 | G40: 274.5 | H40: 271.6
A41: 2019-04-01 | B41: 266.2 | C41: 131.9 | D41: 263.7 | E41: 311 | F41: 249.2 | G41: 274.5 | H41: 271.6
A42: 2019-05-01 | B42: 266.2 | C42: 131.9 | D42: 267.7 | E42: 311 | F42: 249.2 | G42: 272.3 | H42: 271.6
A43: 2019-06-01 | B43: 266.2 | C43: 131.9 | D43: 270.2 | E43: 311 | F43: 249.2 | G43: 272.3 | H43: 271.6
A44: 2019-07-01 | B44: 319.6 | C44: 137.8 | D44: 270.2 | E44: 311 | F44: 246.6 | G44: 263 | H44: 271.6
A45: 2019-08-01 | B45: 319.6 | C45: 137.6 | D45: 270.2 | E45: 311 | F45: 243.1 | G45: 246.3 | H45: 271.6
A46: 2019-09-01 | B46: 319.6 | C46: 137.6 | D46: 270.2 | E46: 311 | F46: 233.5 | G46: 238.5 | H46: 276.9
A47: 2019-10-01 | B47: 315.5 | C47: 137.6 | D47: 247.7 | E47: 311 | F47: 230.6 | G47: 234.4 | H47: 276.9
A48: 2019-11-01 | B48: 315.5 | C48: 137.6 | D48: 235.7 | E48: 311 | F48: 228.4 | G48: 226.1 | H48: 263.2
A49: 2019-12-01 | B49: 315.5 | C49: 137.6 | D49: 240.2 | E49: 311 | F49: 226.7 | G49: 224.6 | H49: 276.9
A50: 2020-01-01 | B50: 315.5 | C50: 137.9 | D50: 240.2 | E50: 289.8 | F50: 225.8 | G50: 263.2 | H50: 260.8
A51: 2020-02-01 | B51: 315.5 | C51: 137.9 | D51: 229.5 | E51: 289.8 | F51: 225.8 | G51: 220.9 | H51: 260.8 | I51: 260.8
A52: 2020-03-01 | B52: 315.5 | C52: 137.9 | D52: 232.1 | E52: 289.8 | F52: 225.8 | G52: 220.9 | H52: 260.8 | I52: 260.8
A53: 2020-04-01 | B53: 311.3 | C53: 137.9 | D53: 232.1 | E53: 274 | F53: 225.8 | G53: 220.9 | H53: 260.8 | I53: 260.8
A54: 2020-05-01 | B54: 311.3 | C54: 137.9 | D54: 232.1 | E54: 274 | F54: 225.8 | G54: 220.9 | H54: 260.8 | I54: 260.8
A55: 2020-06-01 | B55: 311.3 | C55: 137.9 | D55: 232.1 | E55: 274 | F55: 214.5 | G55: 214.5 | H55: 260.8 | I55: 260.8
A56: 2020-07-01 | B56: 311.3 | C56: 148.2 | D56: 232.1 | E56: 274 | F56: 207.4 | G56: 211.3 | H56: 260.8 | I56: 260.8
A57: 2020-08-01 | B57: 311.3 | C57: 148.2 | D57: 221.6 | E57: 274 | F57: 205.9 | G57: 208 | H57: 260.8 | I57: 260.8
A58: 2020-09-01 | B58: 311.3 | C58: 148.2 | D58: 221.6 | E58: 274 | F58: 205.6 | G58: 208 | H58: 260.8 | I58: 260.8
A59: 2020-10-01 | B59: 311.3 | C59: 148.2 | D59: 229.6 | E59: 274 | F59: 204 | G59: 208 | H59: 260.8 | I59: 260.8
A60: 2020-11-01 | B60: 311.3 | C60: 148.2 | D60: 229.6 | E60: 274 | F60: 204 | G60: 208 | H60: 260.8 | I60: 260.8
A61: 2020-12-01 | B61: 311.3 | C61: 148.2 | D61: 287.6 | E61: 274 | F61: 224.5 | G61: 201.3 | H61: 260.8 | I61: 260.8
A62: 2021-01-01 | B62: 311.3 | C62: 148.2 | D62: 310.3 | E62: 274 | F62: 234.2 | G62: 298.6 | H62: 301.5 | I62: 260.8
A63: 2021-02-01 | B63: 311.3 | C63: 148.4 | D63: 310.3 | E63: 303.1 | F63: 245.5 | G63: 298.6 | H63: 301.5 | I63: 260.8
A64: 2021-03-01 | B64: 311.3 | C64: 150.6 | D64: 310.3 | E64: 303.1 | F64: 243.9 | G64: 290 | H64: 291 | I64: 260.8
A65: 2021-04-01 | B65: 315.4 | C65: 152.7 | D65: 310.3 | E65: 358.4 | F65: 251.7 | G65: 338.5 | H65: 318 | I65: 274.9
A66: 2021-05-01 | B66: 315.4 | C66: 152.7 | D66: 313.7 | E66: 358.4 | F66: 251.7 | G66: 420.3 | H66: 419.5 | I66: 274.9
A67: 2021-06-01
A68: 2021-07-01
A69: 2021-08-01
A70: 2021-09-01
A71: 2021-10-01
A72: 2021-11-01
A73: 2021-12-01

Sheet نسب
A3: رقم البند | B3: سعر | C3: كمية | D3: سولار | E3: اسمنت بورتلاند | F3: حديد | G3: اسفلت | H3: قطاعات معدنية | I3: غلاف معدني | J3: زوايا وكمرات | K3: مواسير صلب
A4: 1 | B4: 5 | C4: 120 | D4: 0.2
A5: 2 | B5: 12 | C5: 15 | D5: 0.2
A6: 3 | B6: 7 | C6: 156 | D6: 0.2
A7: 4 | B7: 3 | C7: 125 | D7: 0.2
A8: 5 | B8: 45 | C8: 15 | D8: 0.2
A9: 6 | B9: 645 | C9: 51 | D9: 0.2
A10: 7 | B10: 884 | C10: 4545 | D10: 0.1 | G10: 0.75
A11: 8 | B11: 54 | C11: 1545 | D11: 0.15 | G11: 0.5
A12: 9 | B12: 254 | C12: 45 | D12: 0.15 | G12: 0.65
A13: 10 | B13: 748 | C13: 45 | D13: 0.15 | G13: 0.5
A14: 11 | B14: 545 | C14: 24 | D14: 0.15 | G14: 0.5
A15: 12 | B15: 8987 | C15: 5 | D15: 0.15 | E15: 0.35
A16: 13 | B16: 5454 | C16: 545 | D16: 0.15
A17: 14 | B17: 878 | C17: 2 | D17: 0.1 | E17: 0.25
A18: 15 | B18: 54 | C18: 45 | D18: 0.1 | E18: 0.25
A19: 16 | B19: 8 | C19: 45 | D19: 0.1 | E19: 0.2 | F19: 0.35
A20: 17 | B20: 5486 | C20: 15 | D20: 0.15 | E20: 0.3 | F20: 0.1
A21: 18 | B21: 69 | C21: 45 | D21: 0.15 | E21: 0.3 | F21: 0.1
A22: 19 | B22: 87 | C22: 5 | D22: 0.1 | E22: 0.35
A23: 20 | B23: 857 | C23: 45
A24: 21 | B24: 58 | C24: 5
A25: 22 | B25: 5 | C25: 5
A26: 23 | B26: 8 | C26: 5
A27: 24 | B27: 74 | C27: 5
A28: 25 | B28: 5 | C28: 5
A29: 26 | B29: 8 | C29: 45
